Workbook

Sheet SolCotizacion
B1: Solicitud de Cotización IAD Software I - ArcGIS
B3: Versión: 9 | C3: 25/10/2021
B4: Información de la Entidad Compradora
B6: Nombre de la Entidad | E6: Secretaría General Alcaldía Mayor de Bogotá | K6: NIT | M6: 899999061
B8: Dirección de la Entidad | E8: Carrera 8 No 10 - 65 | K8: Correo de contacto | M8: rlondono@alcaldiabogota.gov.co
B10: Municipio | E10: Bogotá D.C | K10: Teléfono de contacto | M10: 3813000 ext 1160
B12: Nombre funcionario Comprador | E12: Rafael Londoño Caranton
B16: Solicitud de Cotización
B18: Categoría | E18: Software ArgGIS | I18: Valor TRM | J18: 3936.41 | M18: Fecha de lanzamiento del evento de cotización | N18: =TODAY() -> 2021-12-20
I19: Escribir hasta dos cifras decimales. Tenga en cuenta que el simulador aproxima al entero más cercano.
B20: Productos
A22: *Libros, revistas, cartillas y/o catálogo Segmento 1. | B22: =E18 -> Software ArgGIS
B24: Cantidad de filas:
B25: 1
B27: Item | C27: Código Catálogo | E27: Descripción del Producto | I27: Tipo | J27: Unidad | K27: Zona | L27: Asistencia | M27: Perfil | N27: Número de parte | O27: Forma de Pago | P27: cantidad
A28: =E28&L28 -> ArcGIS for Desktop Standard Concurrent LicenN/A | B28: 1 | C28: 86353-LU | E28: =IFERROR(VLOOKUP($C28&$E$18,Consolidado!$B:$U,9,0),VLOOKUP($C28&"Canal",Consolidado!$B:$U,9,0)) -> ArcGIS for Desktop Standard Concurrent Licen | I28: =IFERROR(VLOOKUP($C28&$E$18,Consolidado!$B:$U,12,0),VLOOKUP($C28&"Canal",Consolidado!$B:$U,12,0)) -> Licencias | J28: =IFERROR(VLOOKUP($C28&$E$18,Consolidado!$B:$U,10,0),VLOOKUP($C28&"Canal",Consolidado!$B:$U,10,0)) -> Licencia | K28: =IFERROR(VLOOKUP($C28&$E$18,Consolidado!$B:$U,13,0),VLOOKUP($C28&"Canal",Consolidado!$B:$U,13,0)) -> N/A | L28: =IFERROR(VLOOKUP($C28&$E$18,Consolidado!$B:$U,14,0),VLOOKUP($C28&"Canal",Consolidado!$B:$U,14,0)) -> N/A | M28: =IFERROR(VLOOKUP($C28&$E$18,Consolidado!$B:$U,15,0),VLOOKUP($C28&"Canal",Consolidado!$B:$U,15,0)) -> N/A | N28: =IFERROR(VLOOKUP($C28&$E$18,Consolidado!$B:$U,16,0),VLOOKUP($C28&"Canal",Consolidado!$B:$U,16,0)) -> 86353-LU | O28: =IFERROR(VLOOKUP($C28&$E$18,Consolidado!$B:$U,17,0),VLOOKUP($C28&"Canal",Consolidado!$B:$U,17,0)) -> Credito a 30 días | P28: 1 | Q28: =IFERROR(VLOOKUP($C28&$E$18,Consolidado!$B:$U,5,0),VLOOKUP($C28&"Canal",Consolidado!$B:$U,5,0)) -> Software ArgGIS
A29: =E29&L29 -> ArcGIS for Desktop Standard Concurrent Primary actualizaciónN/A | B29: 2 | C29: C86497 | E29: =IFERROR(VLOOKUP($C29&$E$18,Consolidado!$B:$U,9,0),VLOOKUP($C29&"Canal",Consolidado!$B:$U,9,0)) -> ArcGIS for Desktop Standard Concurrent Primary actualización | I29: =IFERROR(VLOOKUP($C29&$E$18,Consolidado!$B:$U,12,0),VLOOKUP($C29&"Canal",Consolidado!$B:$U,12,0)) -> Actualización | J29: =IFERROR(VLOOKUP($C29&$E$18,Consolidado!$B:$U,10,0),VLOOKUP($C29&"Canal",Consolidado!$B:$U,10,0)) -> Licencia | K29: =IFERROR(VLOOKUP($C29&$E$18,Consolidado!$B:$U,13,0),VLOOKUP($C29&"Canal",Consolidado!$B:$U,13,0)) -> N/A | L29: =IFERROR(VLOOKUP($C29&$E$18,Consolidado!$B:$U,14,0),VLOOKUP($C29&"Canal",Consolidado!$B:$U,14,0)) -> N/A | M29: =IFERROR(VLOOKUP($C29&$E$18,Consolidado!$B:$U,15,0),VLOOKUP($C29&"Canal",Consolidado!$B:$U,15,0)) -> N/A | N29: =IFERROR(VLOOKUP($C29&$E$18,Consolidado!$B:$U,16,0),VLOOKUP($C29&"Canal",Consolidado!$B:$U,16,0)) -> C86497 | O29: =IFERROR(VLOOKUP($C29&$E$18,Consolidado!$B:$U,17,0),VLOOKUP($C29&"Canal",Consolidado!$B:$U,17,0)) -> Credito a 30 días | P29: 1 | Q29: =IFERROR(VLOOKUP($C29&$E$18,Consolidado!$B:$U,5,0),VLOOKUP($C29&"Canal",Consolidado!$B:$U,5,0)) -> Software ArgGIS
A30: =E30&L30 -> ArcGIS Online (Creator) User Type Term LicenseN/A | B30: 3 | C30: C153148 | E30: =IFERROR(VLOOKUP($C30&$E$18,Consolidado!$B:$U,9,0),VLOOKUP($C30&"Canal",Consolidado!$B:$U,9,0)) -> ArcGIS Online (Creator) User Type Term License | I30: =IFERROR(VLOOKUP($C30&$E$18,Consolidado!$B:$U,12,0),VLOOKUP($C30&"Canal",Consolidado!$B:$U,12,0)) -> Licencias | J30: =IFERROR(VLOOKUP($C30&$E$18,Consolidado!$B:$U,10,0),VLOOKUP($C30&"Canal",Consolidado!$B:$U,10,0)) -> Licencia/mes | K30: =IFERROR(VLOOKUP($C30&$E$18,Consolidado!$B:$U,13,0),VLOOKUP($C30&"Canal",Consolidado!$B:$U,13,0)) -> N/A | L30: =IFERROR(VLOOKUP($C30&$E$18,Consolidado!$B:$U,14,0),VLOOKUP($C30&"Canal",Consolidado!$B:$U,14,0)) -> N/A | M30: =IFERROR(VLOOKUP($C30&$E$18,Consolidado!$B:$U,15,0),VLOOKUP($C30&"Canal",Consolidado!$B:$U,15,0)) -> N/A | N30: =IFERROR(VLOOKUP($C30&$E$18,Consolidado!$B:$U,16,0),VLOOKUP($C30&"Canal",Consolidado!$B:$U,16,0)) -> C153148 | O30: =IFERROR(VLOOKUP($C30&$E$18,Consolidado!$B:$U,17,0),VLOOKUP($C30&"Canal",Consolidado!$B:$U,17,0)) -> Credito a 30 días | P30: 12 | Q30: =IFERROR(VLOOKUP($C30&$E$18,Consolidado!$B:$U,5,0),VLOOKUP($C30&"Canal",Consolidado!$B:$U,5,0)) -> Software ArgGIS
A31: =E31&L31 -> ArcGIS Online Service Credits; Block of 1,000N/A | B31: 4 | C31: C153418 | E31: =IFERROR(VLOOKUP($C31&$E$18,Consolidado!$B:$U,9,0),VLOOKUP($C31&"Canal",Consolidado!$B:$U,9,0)) -> ArcGIS Online Service Credits; Block of 1,000 | I31: =IFERROR(VLOOKUP($C31&$E$18,Consolidado!$B:$U,12,0),VLOOKUP($C31&"Canal",Consolidado!$B:$U,12,0)) -> Licencias | J31: =IFERROR(VLOOKUP($C31&$E$18,Consolidado!$B:$U,10,0),VLOOKUP($C31&"Canal",Consolidado!$B:$U,10,0)) -> paquete de creditos | K31: =IFERROR(VLOOKUP($C31&$E$18,Consolidado!$B:$U,13,0),VLOOKUP($C31&"Canal",Consolidado!$B:$U,13,0)) -> N/A | L31: =IFERROR(VLOOKUP($C31&$E$18,Consolidado!$B:$U,14,0),VLOOKUP($C31&"Canal",Consolidado!$B:$U,14,0)) -> N/A | M31: =IFERROR(VLOOKUP($C31&$E$18,Consolidado!$B:$U,15,0),VLOOKUP($C31&"Canal",Consolidado!$B:$U,15,0)) -> N/A | N31: =IFERROR(VLOOKUP($C31&$E$18,Consolidado!$B:$U,16,0),VLOOKUP($C31&"Canal",Consolidado!$B:$U,16,0)) -> C153418 | O31: =IFERROR(VLOOKUP($C31&$E$18,Consolidado!$B:$U,17,0),VLOOKUP($C31&"Canal",Consolidado!$B:$U,17,0)) -> Credito a 30 días | P31: 3 | Q31: =IFERROR(VLOOKUP($C31&$E$18,Consolidado!$B:$U,5,0),VLOOKUP($C31&"Canal",Consolidado!$B:$U,5,0)) -> Software ArgGIS
A32: =E32&L32 -> ArcGIS Online (Viewer) User Type Term LicenseN/A | B32: 5 | C32: C153147 | E32: =IFERROR(VLOOKUP($C32&$E$18,Consolidado!$B:$U,9,0),VLOOKUP($C32&"Canal",Consolidado!$B:$U,9,0)) -> ArcGIS Online (Viewer) User Type Term License | I32: =IFERROR(VLOOKUP($C32&$E$18,Consolidado!$B:$U,12,0),VLOOKUP($C32&"Canal",Consolidado!$B:$U,12,0)) -> Licencias | J32: =IFERROR(VLOOKUP($C32&$E$18,Consolidado!$B:$U,10,0),VLOOKUP($C32&"Canal",Consolidado!$B:$U,10,0)) -> Licencia/mes | K32: =IFERROR(VLOOKUP($C32&$E$18,Consolidado!$B:$U,13,0),VLOOKUP($C32&"Canal",Consolidado!$B:$U,13,0)) -> N/A | L32: =IFERROR(VLOOKUP($C32&$E$18,Consolidado!$B:$U,14,0),VLOOKUP($C32&"Canal",Consolidado!$B:$U,14,0)) -> N/A | M32: =IFERROR(VLOOKUP($C32&$E$18,Consolidado!$B:$U,15,0),VLOOKUP($C32&"Canal",Consolidado!$B:$U,15,0)) -> N/A | N32: =IFERROR(VLOOKUP($C32&$E$18,Consolidado!$B:$U,16,0),VLOOKUP($C32&"Canal",Consolidado!$B:$U,16,0)) -> C153147 | O32: =IFERROR(VLOOKUP($C32&$E$18,Consolidado!$B:$U,17,0),VLOOKUP($C32&"Canal",Consolidado!$B:$U,17,0)) -> Credito a 30 días | P32: 12 | Q32: =IFERROR(VLOOKUP($C32&$E$18,Consolidado!$B:$U,5,0),VLOOKUP($C32&"Canal",Consolidado!$B:$U,5,0)) -> Software ArgGIS
A33: =E33&L33 -> ArcGIS Online (Viewer) User Type Term LicenseN/A | B33: 6 | C33: C153147 | E33: =IFERROR(VLOOKUP($C33&$E$18,Consolidado!$B:$U,9,0),VLOOKUP($C33&"Canal",Consolidado!$B:$U,9,0)) -> ArcGIS Online (Viewer) User Type Term License | I33: =IFERROR(VLOOKUP($C33&$E$18,Consolidado!$B:$U,12,0),VLOOKUP($C33&"Canal",Consolidado!$B:$U,12,0)) -> Licencias | J33: =IFERROR(VLOOKUP($C33&$E$18,Consolidado!$B:$U,10,0),VLOOKUP($C33&"Canal",Consolidado!$B:$U,10,0)) -> Licencia/mes | K33: =IFERROR(VLOOKUP($C33&$E$18,Consolidado!$B:$U,13,0),VLOOKUP($C33&"Canal",Consolidado!$B:$U,13,0)) -> N/A | L33: =IFERROR(VLOOKUP($C33&$E$18,Consolidado!$B:$U,14,0),VLOOKUP($C33&"Canal",Consolidado!$B:$U,14,0)) -> N/A | M33: =IFERROR(VLOOKUP($C33&$E$18,Consolidado!$B:$U,15,0),VLOOKUP($C33&"Canal",Consolidado!$B:$U,15,0)) -> N/A | N33: =IFERROR(VLOOKUP($C33&$E$18,Consolidado!$B:$U,16,0),VLOOKUP($C33&"Canal",Consolidado!$B:$U,16,0)) -> C153147 | O33: =IFERROR(VLOOKUP($C33&$E$18,Consolidado!$B:$U,17,0),VLOOKUP($C33&"Canal",Consolidado!$B:$U,17,0)) -> Credito a 30 días | P33: 12 | Q33: =IFERROR(VLOOKUP($C33&$E$18,Consolidado!$B:$U,5,0),VLOOKUP($C33&"Canal",Consolidado!$B:$U,5,0)) -> Software ArgGIS
A34: =E34&L34 -> ArcGIS Online (Viewer) User Type Term LicenseN/A | B34: 7 | C34: C153147 | E34: =IFERROR(VLOOKUP($C34&$E$18,Consolidado!$B:$U,9,0),VLOOKUP($C34&"Canal",Consolidado!$B:$U,9,0)) -> ArcGIS Online (Viewer) User Type Term License | I34: =IFERROR(VLOOKUP($C34&$E$18,Consolidado!$B:$U,12,0),VLOOKUP($C34&"Canal",Consolidado!$B:$U,12,0)) -> Licencias | J34: =IFERROR(VLOOKUP($C34&$E$18,Consolidado!$B:$U,10,0),VLOOKUP($C34&"Canal",Consolidado!$B:$U,10,0)) -> Licencia/mes | K34: =IFERROR(VLOOKUP($C34&$E$18,Consolidado!$B:$U,13,0),VLOOKUP($C34&"Canal",Consolidado!$B:$U,13,0)) -> N/A | L34: =IFERROR(VLOOKUP($C34&$E$18,Consolidado!$B:$U,14,0),VLOOKUP($C34&"Canal",Consolidado!$B:$U,14,0)) -> N/A | M34: =IFERROR(VLOOKUP($C34&$E$18,Consolidado!$B:$U,15,0),VLOOKUP($C34&"Canal",Consolidado!$B:$U,15,0)) -> N/A | N34: =IFERROR(VLOOKUP($C34&$E$18,Consolidado!$B:$U,16,0),VLOOKUP($C34&"Canal",Consolidado!$B:$U,16,0)) -> C153147 | O34: =IFERROR(VLOOKUP($C34&$E$18,Consolidado!$B:$U,17,0),VLOOKUP($C34&"Canal",Consolidado!$B:$U,17,0)) -> Credito a 30 días | P34: 12 | Q34: =IFERROR(VLOOKUP($C34&$E$18,Consolidado!$B:$U,5,0),VLOOKUP($C34&"Canal",Consolidado!$B:$U,5,0)) -> Software ArgGIS
B35: 1. Si requiere agregue o elimine fila
B38: Gravámenes adicionales*
B39: Si los hay, indique los gravámenes adicionales a los que está sujeta la Orden de Compra. Son gravámenes adicionales por ejemplo; estampillas y demás impuestos territoriales. Los impuestos como ICA y retención en la fuente NO son gravámenes adicionales.
B40: Gravámenes adicionales (estampillas)
B41: No | C41: Descripción | H41: Porcentaje
B42: 1 | C42: PROADULTO MAYOR | H42: 0.02
B43: 2 | C43: PROCULTURA | H43: 0.005
B44: 3 | C44: UNIVERSIDAD DISTRITAL FRANCISCO JOSE DE CALDAS | H44: 0.011
F45: Total porcentaje: | H45: =SUM(H42:H44) -> 0.036
D46: Filas a agregar o eliminar Gravámenes:
D47: 1

Sheet Anexo
B1: Con el objetivo de complementar el entendimiento sobre la solicitud de Productos y Servicios ArcGIS , por favor diligencie la totalidad de la información que se pide a continuación.
B3: Tenga en cuenta que esta información es de utilidad para que el Proveedor pueda cotizar de la manera más precisa posible los Productos y Servicios ArcGIS solicitados, por lo cual la exactitud y completitud es muy importante.
A4: No | B4: Requerimiento adicional | C4: Descripción | D4: INFORMACION SUMINISTRADA POR LA ENTIDAD COMPRADORA
B5: Nombre y Nit de la Entidad Estatal a la cual se le entregará la titularidad de las licencias adquiridas.
A6: 1 | B6: Lugar de entrega de los Productos y Servicios ArcGIS. (Especificar dirección y ciudad de entrega).
A7: 2 | B7: Datos Contacto de entrega (Especificar nombre, teléfono y correo electrónico).
A8: 3 | B8: Funciones a realizar el soporte en sitio.
A9: 4 | B9: Área de conocimiento de las personas que prestan el servicio de soporte técnico proactivo.
A10: 5 | B10: Área de conocimiento de las personas que prestan el servicio de soporte técnico reactivo.
A11: 6 | B11: Mecanismo de solicitud del soporte reactivo.
A12: 7 | B12: Especificar que información o que bases de datos se van a migrar. Aplica en el caso que la Entidad Compradora solicite el servicio de migración de información o de bases de datos.
A13: 8 | B13: Actividades del gerente de cuenta.
A14: 9 | B14: Indique número de personas que requieren de capacitación. En caso que la Entidad Compradora solicite el servicio de capacitación usuario final o usuario técnico.
A15: 10 | B15: Especificar características de configuración y descripción de las tareas a realizar. En caso que la Entidad Compradora solicite el servicio de configuración y parametrización.
A16: 12 | B16: Establecer las políticas de respaldo de información.

Sheet ResumenCotizacion
B1: Solicitud de Cotización Software ArcGIS
B3: =SolCotizacion!B3 -> Versión: 9
B4: Información de la Entidad Compradora
B6: Nombre de la Entidad | E6: Secretaría General Alcaldía Mayor de Bogotá | K6: NIT | M6: 899999061
B8: Dirección de la Entidad | E8: Carrera 8 No 10 - 65 | K8: Correo de contacto | M8: rlondono@alcaldiabogota.gov.co
B10: Municipio | E10: Bogotá D.C | K10: Teléfono de contacto | M10: 3813000 ext 1160
B12: Nombre funcionario Comprador | E12: Rafael Londoño Caranton
B16: Solicitud de Cotización
B18: Categoría | E18: Software ArgGIS | I18: Valor TRM | J18: =SolCotizacion!J18 -> 3936.41 | M18: Fecha | N18: =SolCotizacion!N18 -> 2021-12-20
B20: Productos
A22: *Libros, revistas, cartillas y/o catálogo Segmento 1. | B22: =SolCotizacion!B22 -> Software ArgGIS
B24: Cantidad de filas:
B25: 1
B27: Item | C27: Código Catálogo | E27: Descripción del Producto | I27: Tipo | J27: Unidad | K27: Zona | L27: Asistencia | M27: Perfil | N27: Número de parte | O27: Forma de Pago | P27: cantidad | Q27: Precio Unitario | R27: Precio máximo permitido | S27: Subtotal | T27: IVA | U27: Precio Total
A28: ArcGIS for Desktop Standard Concurrent LicenN/A | B28: 1 | C28: 86353-LU | E28: ArcGIS for Desktop Standard Concurrent Licen | I28: Licencias | J28: Licencia | K28: N/A | L28: N/A | M28: N/A | N28: 86353-LU | O28: Credito a 30 días | P28: 1 | Q28: =IFERROR(VLOOKUP("ESRI"&$V28&$C28,temp!$A:$Y,19,0)*$J$18,VLOOKUP("Catalogo principal"&$V28&$C28,temp!$A:$Y,19,0)*$J$18) -> 37809139.32 | R28: =ROUND(Q28/(1-(VLOOKUP("Total porcentaje:",$F:$H,3))),0) -> 39221099 | S28: =ROUND(P28*R28,0) -> 39221099 | T28: =IFERROR(ROUND(S28*IF(VLOOKUP("ESRI"&$V28&$C28,Consolidado!$A:$U,21,0)=1,19%,0),0),ROUND(S28*IF(VLOOKUP("Catalogo principal"&$V28&$C28,Consolidado!$A:$U,21,0)=1,19%,0),0)) -> 0 | U28: =S28+T28 -> 39221099 | V28: =IFERROR(VLOOKUP($C28&$E$18,Consolidado!$B:$U,5,0),VLOOKUP($C28&"Canal",Consolidado!$B:$U,5,0)) -> Software ArgGIS
A29: ArcGIS for Desktop Standard Concurrent Primary actualizaciónN/A | B29: 2 | C29: C86497 | E29: ArcGIS for Desktop Standard Concurrent Primary actualización | I29: Actualización | J29: Licencia | K29: N/A | L29: N/A | M29: N/A | N29: C86497 | O29: Credito a 30 días | P29: 1 | Q29: =IFERROR(VLOOKUP("ESRI"&$V29&$C29,temp!$A:$Y,19,0)*$J$18,VLOOKUP("Catalogo principal"&$V29&$C29,temp!$A:$Y,19,0)*$J$18) -> 19250521.05 | R29: 19969420 | S29: 19969420 | T29: =IFERROR(ROUND(S29*IF(VLOOKUP("ESRI"&$V29&$C29,Consolidado!$A:$U,21,0)=1,19%,0),0),ROUND(S29*IF(VLOOKUP("Catalogo principal"&$V29&$C29,Consolidado!$A:$U,21,0)=1,19%,0),0)) -> 0 | U29: 19969420 | V29: =IFERROR(VLOOKUP($C29&$E$18,Consolidado!$B:$U,5,0),VLOOKUP($C29&"Canal",Consolidado!$B:$U,5,0)) -> Software ArgGIS
A30: ArcGIS Online (Creator) User Type Term LicenseN/A | B30: 3 | C30: C153148 | E30: ArcGIS Online (Creator) User Type Term License | I30: Licencias | J30: Licencia/mes | K30: N/A | L30: N/A | M30: N/A | N30: C153148 | O30: Credito a 30 días | P30: 12 | Q30: =IFERROR(VLOOKUP("ESRI"&$V30&$C30,temp!$A:$Y,19,0)*$J$18,VLOOKUP("Catalogo principal"&$V30&$C30,temp!$A:$Y,19,0)*$J$18) -> 213894.6784 | R30: 221882 | S30: 2662584 | T30: =IFERROR(ROUND(S30*IF(VLOOKUP("ESRI"&$V30&$C30,Consolidado!$A:$U,21,0)=1,19%,0),0),ROUND(S30*IF(VLOOKUP("Catalogo principal"&$V30&$C30,Consolidado!$A:$U,21,0)=1,19%,0),0)) -> 0 | U30: 2662584 | V30: =IFERROR(VLOOKUP($C30&$E$18,Consolidado!$B:$U,5,0),VLOOKUP($C30&"Canal",Consolidado!$B:$U,5,0)) -> Software ArgGIS
A31: ArcGIS Online Service Credits; Block of 1,000N/A | B31: 4 | C31: C153418 | E31: ArcGIS Online Service Credits; Block of 1,000 | I31: Licencias | J31: paquete de creditos | K31: N/A | L31: N/A | M31: N/A | N31: C153418 | O31: Credito a 30 días | P31: 3 | Q31: =IFERROR(VLOOKUP("ESRI"&$V31&$C31,temp!$A:$Y,19,0)*$J$18,VLOOKUP("Catalogo principal"&$V31&$C31,temp!$A:$Y,19,0)*$J$18) -> 513347.2281 | R31: 532518 | S31: 1597554 | T31: =IFERROR(ROUND(S31*IF(VLOOKUP("ESRI"&$V31&$C31,Consolidado!$A:$U,21,0)=1,19%,0),0),ROUND(S31*IF(VLOOKUP("Catalogo principal"&$V31&$C31,Consolidado!$A:$U,21,0)=1,19%,0),0)) -> 0 | U31: 1597554 | V31: =IFERROR(VLOOKUP($C31&$E$18,Consolidado!$B:$U,5,0),VLOOKUP($C31&"Canal",Consolidado!$B:$U,5,0)) -> Software ArgGIS
A32: ArcGIS Online (Viewer) User Type Term LicenseN/A | B32: 5 | C32: C153147 | E32: ArcGIS Online (Viewer) User Type Term License | I32: Licencias | J32: Licencia/mes | K32: N/A | L32: N/A | M32: N/A | N32: C153147 | O32: Credito a 30 días | P32: 12 | Q32: =IFERROR(VLOOKUP("ESRI"&$V32&$C32,temp!$A:$Y,19,0)*$J$18,VLOOKUP("Catalogo principal"&$V32&$C32,temp!$A:$Y,19,0)*$J$18) -> 42778.93568 | R32: 44376 | S32: 532512 | T32: =IFERROR(ROUND(S32*IF(VLOOKUP("ESRI"&$V32&$C32,Consolidado!$A:$U,21,0)=1,19%,0),0),ROUND(S32*IF(VLOOKUP("Catalogo principal"&$V32&$C32,Consolidado!$A:$U,21,0)=1,19%,0),0)) -> 0 | U32: 532512 | V32: =IFERROR(VLOOKUP($C32&$E$18,Consolidado!$B:$U,5,0),VLOOKUP($C32&"Canal",Consolidado!$B:$U,5,0)) -> Software ArgGIS
A33: ArcGIS Online (Viewer) User Type Term LicenseN/A | B33: 6 | C33: C153147 | E33: ArcGIS Online (Viewer) User Type Term License | I33: Licencias | J33: Licencia/mes | K33: N/A | L33: N/A | M33: N/A | N33: C153147 | O33: Credito a 30 días | P33: 12 | Q33: =IFERROR(VLOOKUP("ESRI"&$V33&$C33,temp!$A:$Y,19,0)*$J$18,VLOOKUP("Catalogo principal"&$V33&$C33,temp!$A:$Y,19,0)*$J$18) -> 42778.93568 | R33: 44376 | S33: 532512 | T33: =IFERROR(ROUND(S33*IF(VLOOKUP("ESRI"&$V33&$C33,Consolidado!$A:$U,21,0)=1,19%,0),0),ROUND(S33*IF(VLOOKUP("Catalogo principal"&$V33&$C33,Consolidado!$A:$U,21,0)=1,19%,0),0)) -> 0 | U33: 532512 | V33: =IFERROR(VLOOKUP($C33&$E$18,Consolidado!$B:$U,5,0),VLOOKUP($C33&"Canal",Consolidado!$B:$U,5,0)) -> Software ArgGIS
A34: ArcGIS Online (Viewer) User Type Term LicenseN/A | B34: 7 | C34: C153147 | E34: ArcGIS Online (Viewer) User Type Term License | I34: Licencias | J34: Licencia/mes | K34: N/A | L34: N/A | M34: N/A | N34: C153147 | O34: Credito a 30 días | P34: 12 | Q34: =IFERROR(VLOOKUP("ESRI"&$V34&$C34,temp!$A:$Y,19,0)*$J$18,VLOOKUP("Catalogo principal"&$V34&$C34,temp!$A:$Y,19,0)*$J$18) -> 42778.93568 | R34: 44376 | S34: 532512 | T34: =IFERROR(ROUND(S34*IF(VLOOKUP("ESRI"&$V34&$C34,Consolidado!$A:$U,21,0)=1,19%,0),0),ROUND(S34*IF(VLOOKUP("Catalogo principal"&$V34&$C34,Consolidado!$A:$U,21,0)=1,19%,0),0)) -> 0 | U34: 532512 | V34: =IFERROR(VLOOKUP($C34&$E$18,Consolidado!$B:$U,5,0),VLOOKUP($C34&"Canal",Consolidado!$B:$U,5,0)) -> Software ArgGIS
B35: 1. Si requiere agregue o elimine fila | T35: Valor Total | U35: =ROUND(SUM($U$28:$U$34),0) -> 65048193
B38: Gravámenes adicionales*
B39: Si los hay, indique los gravámenes adicionales a los que está sujeta la Orden de Compra. Son gravámenes adicionales por ejemplo; estampillas y demás impuestos territoriales. Los impuestos como ICA y retención en la fuente NO son gravámenes adicionales.
B40: Gravámenes adicionales (estampillas)
B41: No | C41: Descripción | H41: Porcentaje
B42: 1 | C42: PROADULTO MAYOR | H42: 0.02
B43: 2 | C43: PROCULTURA | H43: 0.005
B44: 3 | C44: UNIVERSIDAD DISTRITAL FRANCISCO JOSE DE CALDAS | H44: 0.011
F45: Total porcentaje: | H45: =SUM(H42:H44) -> 0.036
D46: Filas a agregar o eliminar Gravámenes:
D47: 1
... 1 more rows

Sheet Cotizacion
B1: Solicitud de Cotización SoftwareArcGIS
B3: =SolCotizacion!B3 -> Versión: 9 | C3: =SolCotizacion!C3 -> 25/10/2021
B4: Información de la Entidad Compradora
B6: Nombre de la Entidad | E6: Secretaría General Alcaldía Mayor de Bogotá | K6: NIT | M6: 899999061
B8: Dirección de la Entidad | E8: Carrera 8 No 10 - 65 | K8: Correo de contacto | M8: rlondono@alcaldiabogota.gov.co
B10: Municipio | E10: Bogotá D.C | K10: Teléfono de contacto | M10: 3813000 ext 1160
B12: Nombre funcionario Comprador | E12: Rafael Londoño Caranton
B16: Solicitud de Cotización
B18: Categoría | E18: Software ArgGIS | I18: Valor TRM | J18: =SolCotizacion!J18 -> 3936.41 | M18: Fecha | N18: =SolCotizacion!N18 -> 2021-12-20
B20: Productos
A22: *Libros, revistas, cartillas y/o catálogo Segmento 1. | B22: =SolCotizacion!B22 -> Software ArgGIS
B24: Cantidad de filas:
B25: 1 | L25: Proveedor
B27: Item | C27: Código Catálogo | E27: Descripción del Producto | I27: Tipo | J27: Unidad | K27: Zona | L27: Asistencia | M27: Perfil | N27: Número de parte | O27: Forma de Pago | P27: cantidad | Q27: Precio Unitario | R27: Precio máximo permitido | S27: Descuento adicional | T27: Precio con Descuento | U27: Subtotal | V27: IVA | W27: Precio Total
A28: ArcGIS for Desktop Standard Concurrent LicenN/A | B28: 1 | C28: 86353-LU | E28: ArcGIS for Desktop Standard Concurrent Licen | I28: Licencias | J28: Licencia | K28: N/A | L28: N/A | M28: N/A | N28: 86353-LU | O28: Credito a 30 días | P28: 1 | Q28: =IFERROR(VLOOKUP($N$25&$X28&$C28,temp!$A:$Y,19,0)*$J$18,VLOOKUP("Catalogo principal"&$X28&$C28,temp!$A:$Y,19,0)*$J$18) ->  | R28: =ROUND(Q28/(1-(VLOOKUP("Total porcentaje:",$F:$H,3))),0) ->  | S28: =IF(T28<>"",((R28-T28)*100%)/R28,0) -> 0 | U28: =ROUND(P28*T28,0) -> 0 | V28: =IFERROR(ROUND(U28*IF(VLOOKUP($N$25&$X28&$C28,Consolidado!$A:$U,21,0)=1,19%,0),0),ROUND(U28*IF(VLOOKUP("Catalogo principal"&$X28&$C28,Consolidado!$A:$U,21,0)=1,19%,0),0)) ->  | W28: =U28+V28 ->  | X28: =IFERROR(VLOOKUP($C28&$E$18,Consolidado!$B:$U,5,0),VLOOKUP($C28&"Canal",Consolidado!$B:$U,5,0)) -> Software ArgGIS
A29: ArcGIS for Desktop Standard Concurrent Primary actualizaciónN/A | B29: 2 | C29: C86497 | E29: ArcGIS for Desktop Standard Concurrent Primary actualización | I29: Actualización | J29: Licencia | K29: N/A | L29: N/A | M29: N/A | N29: C86497 | O29: Credito a 30 días | P29: 1 | Q29: =IFERROR(VLOOKUP($N$25&$X29&$C29,temp!$A:$Y,19,0)*$J$18,VLOOKUP("Catalogo principal"&$X29&$C29,temp!$A:$Y,19,0)*$J$18) ->  | S29: 0 | U29: 0 | V29: =IFERROR(ROUND(U29*IF(VLOOKUP($N$25&$X29&$C29,Consolidado!$A:$U,21,0)=1,19%,0),0),ROUND(U29*IF(VLOOKUP("Catalogo principal"&$X29&$C29,Consolidado!$A:$U,21,0)=1,19%,0),0)) ->  | X29: =IFERROR(VLOOKUP($C29&$E$18,Consolidado!$B:$U,5,0),VLOOKUP($C29&"Canal",Consolidado!$B:$U,5,0)) -> Software ArgGIS
A30: ArcGIS Online (Creator) User Type Term LicenseN/A | B30: 3 | C30: C153148 | E30: ArcGIS Online (Creator) User Type Term License | I30: Licencias | J30: Licencia/mes | K30: N/A | L30: N/A | M30: N/A | N30: C153148 | O30: Credito a 30 días | P30: 12 | Q30: =IFERROR(VLOOKUP($N$25&$X30&$C30,temp!$A:$Y,19,0)*$J$18,VLOOKUP("Catalogo principal"&$X30&$C30,temp!$A:$Y,19,0)*$J$18) ->  | S30: 0 | U30: 0 | V30: =IFERROR(ROUND(U30*IF(VLOOKUP($N$25&$X30&$C30,Consolidado!$A:$U,21,0)=1,19%,0),0),ROUND(U30*IF(VLOOKUP("Catalogo principal"&$X30&$C30,Consolidado!$A:$U,21,0)=1,19%,0),0)) ->  | X30: =IFERROR(VLOOKUP($C30&$E$18,Consolidado!$B:$U,5,0),VLOOKUP($C30&"Canal",Consolidado!$B:$U,5,0)) -> Software ArgGIS
A31: ArcGIS Online Service Credits; Block of 1,000N/A | B31: 4 | C31: C153418 | E31: ArcGIS Online Service Credits; Block of 1,000 | I31: Licencias | J31: paquete de creditos | K31: N/A | L31: N/A | M31: N/A | N31: C153418 | O31: Credito a 30 días | P31: 3 | Q31: =IFERROR(VLOOKUP($N$25&$X31&$C31,temp!$A:$Y,19,0)*$J$18,VLOOKUP("Catalogo principal"&$X31&$C31,temp!$A:$Y,19,0)*$J$18) ->  | S31: 0 | U31: 0 | V31: =IFERROR(ROUND(U31*IF(VLOOKUP($N$25&$X31&$C31,Consolidado!$A:$U,21,0)=1,19%,0),0),ROUND(U31*IF(VLOOKUP("Catalogo principal"&$X31&$C31,Consolidado!$A:$U,21,0)=1,19%,0),0)) ->  | X31: =IFERROR(VLOOKUP($C31&$E$18,Consolidado!$B:$U,5,0),VLOOKUP($C31&"Canal",Consolidado!$B:$U,5,0)) -> Software ArgGIS
A32: ArcGIS Online (Viewer) User Type Term LicenseN/A | B32: 5 | C32: C153147 | E32: ArcGIS Online (Viewer) User Type Term License | I32: Licencias | J32: Licencia/mes | K32: N/A | L32: N/A | M32: N/A | N32: C153147 | O32: Credito a 30 días | P32: 12 | Q32: =IFERROR(VLOOKUP($N$25&$X32&$C32,temp!$A:$Y,19,0)*$J$18,VLOOKUP("Catalogo principal"&$X32&$C32,temp!$A:$Y,19,0)*$J$18) ->  | S32: 0 | U32: 0 | V32: =IFERROR(ROUND(U32*IF(VLOOKUP($N$25&$X32&$C32,Consolidado!$A:$U,21,0)=1,19%,0),0),ROUND(U32*IF(VLOOKUP("Catalogo principal"&$X32&$C32,Consolidado!$A:$U,21,0)=1,19%,0),0)) ->  | X32: =IFERROR(VLOOKUP($C32&$E$18,Consolidado!$B:$U,5,0),VLOOKUP($C32&"Canal",Consolidado!$B:$U,5,0)) -> Software ArgGIS
A33: ArcGIS Online (Viewer) User Type Term LicenseN/A | B33: 6 | C33: C153147 | E33: ArcGIS Online (Viewer) User Type Term License | I33: Licencias | J33: Licencia/mes | K33: N/A | L33: N/A | M33: N/A | N33: C153147 | O33: Credito a 30 días | P33: 12 | Q33: =IFERROR(VLOOKUP($N$25&$X33&$C33,temp!$A:$Y,19,0)*$J$18,VLOOKUP("Catalogo principal"&$X33&$C33,temp!$A:$Y,19,0)*$J$18) ->  | S33: 0 | U33: 0 | V33: =IFERROR(ROUND(U33*IF(VLOOKUP($N$25&$X33&$C33,Consolidado!$A:$U,21,0)=1,19%,0),0),ROUND(U33*IF(VLOOKUP("Catalogo principal"&$X33&$C33,Consolidado!$A:$U,21,0)=1,19%,0),0)) ->  | X33: =IFERROR(VLOOKUP($C33&$E$18,Consolidado!$B:$U,5,0),VLOOKUP($C33&"Canal",Consolidado!$B:$U,5,0)) -> Software ArgGIS
A34: ArcGIS Online (Viewer) User Type Term LicenseN/A | B34: 7 | C34: C153147 | E34: ArcGIS Online (Viewer) User Type Term License | I34: Licencias | J34: Licencia/mes | K34: N/A | L34: N/A | M34: N/A | N34: C153147 | O34: Credito a 30 días | P34: 12 | Q34: =IFERROR(VLOOKUP($N$25&$X34&$C34,temp!$A:$Y,19,0)*$J$18,VLOOKUP("Catalogo principal"&$X34&$C34,temp!$A:$Y,19,0)*$J$18) ->  | S34: 0 | U34: 0 | V34: =IFERROR(ROUND(U34*IF(VLOOKUP($N$25&$X34&$C34,Consolidado!$A:$U,21,0)=1,19%,0),0),ROUND(U34*IF(VLOOKUP("Catalogo principal"&$X34&$C34,Consolidado!$A:$U,21,0)=1,19%,0),0)) ->  | X34: =IFERROR(VLOOKUP($C34&$E$18,Consolidado!$B:$U,5,0),VLOOKUP($C34&"Canal",Consolidado!$B:$U,5,0)) -> Software ArgGIS
B35: 1. Si requiere agregue o elimine fila | V35: Valor Total | W35: =ROUND(SUM($W$28:$W$34),0) -> 
B38: Gravámenes adicionales*
B39: Si los hay, indique los gravámenes adicionales a los que está sujeta la Orden de Compra. Son gravámenes adicionales por ejemplo; estampillas y demás impuestos territoriales. Los impuestos como ICA y retención en la fuente NO son gravámenes adicionales.
B40: Gravámenes adicionales (estampillas)
B41: No | C41: Descripción | H41: Porcentaje
B42: 1 | C42: PROADULTO MAYOR | H42: 0.02
B43: 2 | C43: PROCULTURA | H43: 0.005
B44: 3 | C44: UNIVERSIDAD DISTRITAL FRANCISCO JOSE DE CALDAS | H44: 0.011
F45: Total porcentaje: | H45: =SUM(H42:H44) -> 0.036
D46: Filas a agregar o eliminar Gravámenes:
D47: 1

Sheet CSV (hidden)
A1: Tipo (servicio o artículo) | B1: Cantidad | C1: Código de unidad de medida* | D1: Posición | E1: Precio base | F1: Divisa | G1: Descripción | H1: Mercancía
A2: item | B2: 1 | C2: Und | E2: 7203735 | F2: COP | G2: war01--93198-LU ArcGIS for Desktop Basic Single Licen
A3: item | B3: 1 | C3: Und | E3: 67234860 | F3: COP | G3: war01--52382-LU ArcGIS for Desktop Advanced Concurrent Licen
A4: item | B4: 1 | C4: Und | E4: 12619950 | F4: COP | G4: war01--CCE_CAP_UF_10_Z2_R CapacitaciÃ³n para usuario final - hasta 10 Personas.
A5: item | B5: 1 | C5: Und | E5: 2397791 | F5: COP | G5: war01--IVA

Sheet Categorias (hidden)
A1: Categoría 1 | B1: Sistema Operativo, Plataforma, Nube e Infraestructura y Desarrollo Aplicaciones (Open – CSP)
A2: Categoría 2 | B2: Productividad Administración y análisis de datos (Open - CSP)
A3: Categoría 3 | B3: Movilidad (Open - CSP)
A4: Categoría 4 | B4: Aplicaciones empresariales (Open - CSP)
A5: Categoría 5 | B5: Campus (Educativo)
A6: Categoría 6 | B6: OVS (Educativo)
A7: Categoría 7 | B7: Open - CSP (Educativo)

Sheet Consolidado (hidden)
A1: LLAVE | B1: TEMP1 | C1: TEMP2 | D1: PROVEEDOR | E1: Código matriz Colombia Compra Eficiente | F1: categoria | G1: PROVEEDOR2 | H1: Moneda | I1: Parametrización de los Servicios | J1: Nombre Producto | K1: Unidad de Medida | L1: Unidad TVEC | M1: Tipo | N1: Zona | O1: Asistencia | P1: Perfil | Q1: Número de parte | R1: Forma de Pago | S1: Precio | T1: Activo | U1: IVA | V1: Moneda
A2: =D2&F2&E2 -> ESRISoftware ArgGISC52384 | B2: =E2&F2 -> C52384Software ArgGIS | D2: ESRI | E2: C52384 | F2: Software ArgGIS | G2: ESRI | H2: USD | I2: N/A | J2: ArcGIS for Desktop Advanced Concurrent Primary actualización | K2: Licencia | L2: Und | M2: Actualización | N2: N/A | O2: N/A | P2: N/A | Q2: =+E2 -> C52384 | R2: Credito a 30 días | S2: 9768.6 | T2: 1 | U2: 0 | V2: USD
A3: ESRISoftware ArgGISC52385 | B3: C52385Software ArgGIS | D3: ESRI | E3: C52385 | F3: Software ArgGIS | G3: ESRI | H3: USD | I3: N/A | J3: ArcGIS for Desktop Advanced Concurrent Secondary actualización | K3: Licencia | L3: Und | M3: Actualización | N3: N/A | O3: N/A | P3: N/A | Q3: C52385 | R3: Credito a 30 días | S3: 3907.45 | T3: 1 | U3: 0 | V3: USD
A4: ESRISoftware ArgGISC52386 | B4: C52386Software ArgGIS | D4: ESRI | E4: C52386 | F4: Software ArgGIS | G4: ESRI | H4: USD | I4: N/A | J4: ArcGIS for Desktop Advanced Node Locked Primary actualización | K4: Licencia | L4: Und | M4: Actualización | N4: N/A | O4: N/A | P4: N/A | Q4: C52386 | R4: Credito a 30 días | S4: 13041 | T4: 1 | U4: 0 | V4: USD
A5: ESRISoftware ArgGISC52387 | B5: C52387Software ArgGIS | D5: ESRI | E5: C52387 | F5: Software ArgGIS | G5: ESRI | H5: USD | I5: N/A | J5: ArcGIS for Desktop Advanced Node Locked Secondary actualización | K5: Licencia | L5: Und | M5: Actualización | N5: N/A | O5: N/A | P5: N/A | Q5: C52387 | R5: Credito a 30 días | S5: 5216.4 | T5: 1 | U5: 0 | V5: USD
A6: ESRISoftware ArgGISC86497 | B6: C86497Software ArgGIS | D6: ESRI | E6: C86497 | F6: Software ArgGIS | G6: ESRI | H6: USD | I6: N/A | J6: ArcGIS for Desktop Standard Concurrent Primary actualización | K6: Licencia | L6: Und | M6: Actualización | N6: N/A | O6: N/A | P6: N/A | Q6: C86497 | R6: Credito a 30 días | S6: 4890.375 | T6: 1 | U6: 0 | V6: USD
A7: ESRISoftware ArgGISC86500 | B7: C86500Software ArgGIS | D7: ESRI | E7: C86500 | F7: Software ArgGIS | G7: ESRI | H7: USD | I7: N/A | J7: ArcGIS for Desktop Standard Concurrent Secondary actualización | K7: Licencia | L7: Und | M7: Actualización | N7: N/A | O7: N/A | P7: N/A | Q7: C86500 | R7: Credito a 30 días | S7: 3912.3 | T7: 1 | U7: 0 | V7: USD
A8: ESRISoftware ArgGISC87192 | B8: C87192Software ArgGIS | D8: ESRI | E8: C87192 | F8: Software ArgGIS | G8: ESRI | H8: USD | I8: N/A | J8: ArcGIS for Desktop Basic Single Primary actualización | K8: Licencia | L8: Und | M8: Actualización | N8: N/A | O8: N/A | P8: N/A | Q8: C87192 | R8: Credito a 30 días | S8: 1304.1 | T8: 1 | U8: 0 | V8: USD
A9: ESRISoftware ArgGISC87193 | B9: C87193Software ArgGIS | D9: ESRI | E9: C87193 | F9: Software ArgGIS | G9: ESRI | H9: USD | I9: N/A | J9: ArcGIS for Desktop Basic Single Secondary actualización | K9: Licencia | L9: Und | M9: Actualización | N9: N/A | O9: N/A | P9: N/A | Q9: C87193 | R9: Credito a 30 días | S9: 978.075 | T9: 1 | U9: 0 | V9: USD
A10: ESRISoftware ArgGISC87194 | B10: C87194Software ArgGIS | D10: ESRI | E10: C87194 | F10: Software ArgGIS | G10: ESRI | H10: USD | I10: N/A | J10: ArcGIS for Desktop Basic Concurrent Primary actualización | K10: Licencia | L10: Und | M10: Actualización | N10: N/A | O10: N/A | P10: N/A | Q10: C87194 | R10: Credito a 30 días | S10: 2282.175 | T10: 1 | U10: 0 | V10: USD
A11: ESRISoftware ArgGISC87195 | B11: C87195Software ArgGIS | D11: ESRI | E11: C87195 | F11: Software ArgGIS | G11: ESRI | H11: USD | I11: N/A | J11: ArcGIS for Desktop Basic Concurrent Secondary actualización | K11: Licencia | L11: Und | M11: Actualización | N11: N/A | O11: N/A | P11: N/A | Q11: C87195 | R11: Credito a 30 días | S11: 1630.125 | T11: 1 | U11: 0 | V11: USD
A12: ESRISoftware ArgGISC87198 | B12: C87198Software ArgGIS | D12: ESRI | E12: C87198 | F12: Software ArgGIS | G12: ESRI | H12: USD | I12: N/A | J12: ArcGIS 3D Analyst for Desktop Concurrent Primary actualización | K12: Licencia | L12: Und | M12: Actualización | N12: N/A | O12: N/A | P12: N/A | Q12: C87198 | R12: Credito a 30 días | S12: 1630.125 | T12: 1 | U12: 0 | V12: USD
A13: ESRISoftware ArgGISC87199 | B13: C87199Software ArgGIS | D13: ESRI | E13: C87199 | F13: Software ArgGIS | G13: ESRI | H13: USD | I13: N/A | J13: ArcGIS 3D Analyst for Desktop Concurrent Secondary actualización | K13: Licencia | L13: Und | M13: Actualización | N13: N/A | O13: N/A | P13: N/A | Q13: C87199 | R13: Credito a 30 días | S13: 652.05 | T13: 1 | U13: 0 | V13: USD
A14: ESRISoftware ArgGISC87232 | B14: C87232Software ArgGIS | D14: ESRI | E14: C87232 | F14: Software ArgGIS | G14: ESRI | H14: USD | I14: N/A | J14: ArcGIS Spatial Analyst for Desktop Concurrent Primary actualización | K14: Licencia | L14: Und | M14: Actualización | N14: N/A | O14: N/A | P14: N/A | Q14: C87232 | R14: Credito a 30 días | S14: 1630.125 | T14: 1 | U14: 0 | V14: USD
A15: ESRISoftware ArgGISC87233 | B15: C87233Software ArgGIS | D15: ESRI | E15: C87233 | F15: Software ArgGIS | G15: ESRI | H15: USD | I15: N/A | J15: ArcGIS Spatial Analyst for Desktop Concurrent Secondary actualización | K15: Licencia | L15: Und | M15: Actualización | N15: N/A | O15: N/A | P15: N/A | Q15: C87233 | R15: Credito a 30 días | S15: 652.05 | T15: 1 | U15: 0 | V15: USD
A16: ESRISoftware ArgGISC87236 | B16: C87236Software ArgGIS | D16: ESRI | E16: C87236 | F16: Software ArgGIS | G16: ESRI | H16: USD | I16: N/A | J16: ArcGIS Geostatistical Analyst for Desktop Concurrent Primary actualización | K16: Licencia | L16: Und | M16: Actualización | N16: N/A | O16: N/A | P16: N/A | Q16: C87236 | R16: Credito a 30 días | S16: 1630.125 | T16: 1 | U16: 0 | V16: USD
A17: ESRISoftware ArgGISC87237 | B17: C87237Software ArgGIS | D17: ESRI | E17: C87237 | F17: Software ArgGIS | G17: ESRI | H17: USD | I17: N/A | J17: ArcGIS Geostatistical Analyst for Desktop Concurrent Secondary actualización | K17: Licencia | L17: Und | M17: Actualización | N17: N/A | O17: N/A | P17: N/A | Q17: C87237 | R17: Credito a 30 días | S17: 652.05 | T17: 1 | U17: 0 | V17: USD
A18: ESRISoftware ArgGISC92774 | B18: C92774Software ArgGIS | D18: ESRI | E18: C92774 | F18: Software ArgGIS | G18: ESRI | H18: USD | I18: N/A | J18: ArcGIS Tracking Analyst for Desktop Concurrent Primary actualización | K18: Licencia | L18: Und | M18: Actualización | N18: N/A | O18: N/A | P18: N/A | Q18: C92774 | R18: Credito a 30 días | S18: 1630.125 | T18: 1 | U18: 0 | V18: USD
A19: ESRISoftware ArgGISC92775 | B19: C92775Software ArgGIS | D19: ESRI | E19: C92775 | F19: Software ArgGIS | G19: ESRI | H19: USD | I19: N/A | J19: ArcGIS Tracking Analyst for Desktop Concurrent Secondary actualización | K19: Licencia | L19: Und | M19: Actualización | N19: N/A | O19: N/A | P19: N/A | Q19: C92775 | R19: Credito a 30 días | S19: 652.05 | T19: 1 | U19: 0 | V19: USD
A20: ESRISoftware ArgGISC93094 | B20: C93094Software ArgGIS | D20: ESRI | E20: C93094 | F20: Software ArgGIS | G20: ESRI | H20: USD | I20: N/A | J20: ArcGIS for Desktop Basic with Extensions Single Primary actualización | K20: Licencia | L20: Und | M20: Actualización | N20: N/A | O20: N/A | P20: N/A | Q20: C93094 | R20: Credito a 30 días | S20: 3260.25 | T20: 1 | U20: 0 | V20: USD
A21: ESRISoftware ArgGISC93095 | B21: C93095Software ArgGIS | D21: ESRI | E21: C93095 | F21: Software ArgGIS | G21: ESRI | H21: USD | I21: N/A | J21: ArcGIS for Desktop Basic with Extensions Single Secondary actualización | K21: Licencia | L21: Und | M21: Actualización | N21: N/A | O21: N/A | P21: N/A | Q21: C93095 | R21: Credito a 30 días | S21: 2934.225 | T21: 1 | U21: 0 | V21: USD
A22: ESRISoftware ArgGISC93303 | B22: C93303Software ArgGIS | D22: ESRI | E22: C93303 | F22: Software ArgGIS | G22: ESRI | H22: USD | I22: N/A | J22: ArcGIS for Desktop Standard Single Primary actualización | K22: Licencia | L22: Und | M22: Actualización | N22: N/A | O22: N/A | P22: N/A | Q22: C93303 | R22: Credito a 30 días | S22: 4890.375 | T22: 1 | U22: 0 | V22: USD
A23: ESRISoftware ArgGISC93304 | B23: C93304Software ArgGIS | D23: ESRI | E23: C93304 | F23: Software ArgGIS | G23: ESRI | H23: USD | I23: N/A | J23: ArcGIS for Desktop Standard Single Secondary actualización | K23: Licencia | L23: Und | M23: Actualización | N23: N/A | O23: N/A | P23: N/A | Q23: C93304 | R23: Credito a 30 días | S23: 3912.3 | T23: 1 | U23: 0 | V23: USD
A24: ESRISoftware ArgGISC93306 | B24: C93306Software ArgGIS | D24: ESRI | E24: C93306 | F24: Software ArgGIS | G24: ESRI | H24: USD | I24: N/A | J24: ArcGIS for Desktop Standard with Extensions Single Primary actualización | K24: Licencia | L24: Und | M24: Actualización | N24: N/A | O24: N/A | P24: N/A | Q24: C93306 | R24: Credito a 30 días | S24: 6846.525 | T24: 1 | U24: 0 | V24: USD
A25: ESRISoftware ArgGISC93307 | B25: C93307Software ArgGIS | D25: ESRI | E25: C93307 | F25: Software ArgGIS | G25: ESRI | H25: USD | I25: N/A | J25: ArcGIS for Desktop Standard with Extensions Single Secondary actualización | K25: Licencia | L25: Und | M25: Actualización | N25: N/A | O25: N/A | P25: N/A | Q25: C93307 | R25: Credito a 30 días | S25: 5868.45 | T25: 1 | U25: 0 | V25: USD
A26: ESRISoftware ArgGISC93984 | B26: C93984Software ArgGIS | D26: ESRI | E26: C93984 | F26: Software ArgGIS | G26: ESRI | H26: USD | I26: N/A | J26: ArcGIS Workflow Manager (Classic) for Desktop Concurrent Use Secondary Actualización | K26: Licencia | L26: Und | M26: Actualización | N26: N/A | O26: N/A | P26: N/A | Q26: C93984 | R26: Credito a 30 días | S26: 652.05 | T26: 1 | U26: 0 | V26: USD
A27: ESRISoftware ArgGISC96880 | B27: C96880Software ArgGIS | D27: ESRI | E27: C96880 | F27: Software ArgGIS | G27: ESRI | H27: USD | I27: N/A | J27: ArcGIS Workflow Manager (Classic) for Desktop Concurrent Use Primaryactualización | K27: Licencia | L27: Und | M27: Actualización | N27: N/A | O27: N/A | P27: N/A | Q27: C96880 | R27: Credito a 30 días | S27: 1630.125 | T27: 1 | U27: 0 | V27: USD
A28: ESRISoftware ArgGISC97442 | B28: C97442Software ArgGIS | D28: ESRI | E28: C97442 | F28: Software ArgGIS | G28: ESRI | H28: USD | I28: N/A | J28: ArcGIS Engine Developer Kit Primary actualización | K28: Licencia | L28: Und | M28: Actualización | N28: N/A | O28: N/A | P28: N/A | Q28: C97442 | R28: Credito a 30 días | S28: 9780.75 | T28: 1 | U28: 0 | V28: USD
A29: ESRISoftware ArgGISC97443 | B29: C97443Software ArgGIS | D29: ESRI | E29: C97443 | F29: Software ArgGIS | G29: ESRI | H29: USD | I29: N/A | J29: ArcGIS Engine Developer Kit Secondary actualización | K29: Licencia | L29: Und | M29: Actualización | N29: N/A | O29: N/A | P29: N/A | Q29: C97443 | R29: Credito a 30 días | S29: 4890.375 | T29: 1 | U29: 0 | V29: USD
A30: ESRISoftware ArgGISC97444 | B30: C97444Software ArgGIS | D30: ESRI | E30: C97444 | F30: Software ArgGIS | G30: ESRI | H30: USD | I30: N/A | J30: ArcGIS Engine Single Use without Extension actualización | K30: Licencia | L30: Und | M30: Actualización | N30: N/A | O30: N/A | P30: N/A | Q30: C97444 | R30: Credito a 30 días | S30: 326.025 | T30: 1 | U30: 0 | V30: USD
A31: ESRISoftware ArgGISC97445 | B31: C97445Software ArgGIS | D31: ESRI | E31: C97445 | F31: Software ArgGIS | G31: ESRI | H31: USD | I31: N/A | J31: ArcGIS Engine Single Use with Extension actualización | K31: Licencia | L31: Und | M31: Actualización | N31: N/A | O31: N/A | P31: N/A | Q31: C97445 | R31: Credito a 30 días | S31: 1304.1 | T31: 1 | U31: 0 | V31: USD
A32: ESRISoftware ArgGISC98134 | B32: C98134Software ArgGIS | D32: ESRI | E32: C98134 | F32: Software ArgGIS | G32: ESRI | H32: USD | I32: N/A | J32: ArcGIS Data Interoperability for Desktop Concurrent Primary actualización | K32: Licencia | L32: Und | M32: Actualización | N32: N/A | O32: N/A | P32: N/A | Q32: C98134 | R32: Credito a 30 días | S32: 1630.125 | T32: 1 | U32: 0 | V32: USD
A33: ESRISoftware ArgGISC98135 | B33: C98135Software ArgGIS | D33: ESRI | E33: C98135 | F33: Software ArgGIS | G33: ESRI | H33: USD | I33: N/A | J33: ArcGIS Data Interoperability for Desktop Concurrent Secondary actualización | K33: Licencia | L33: Und | M33: Actualización | N33: N/A | O33: N/A | P33: N/A | Q33: C98135 | R33: Credito a 30 días | S33: 652.05 | T33: 1 | U33: 0 | V33: USD
A34: ESRISoftware ArgGISC98696 | B34: C98696Software ArgGIS | D34: ESRI | E34: C98696 | F34: Software ArgGIS | G34: ESRI | H34: USD | I34: N/A | J34: ArcGIS Publisher for Desktop Concurrent Primary actualización | K34: Licencia | L34: Und | M34: Actualización | N34: N/A | O34: N/A | P34: N/A | Q34: C98696 | R34: Credito a 30 días | S34: 1630.125 | T34: 1 | U34: 0 | V34: USD
A35: ESRISoftware ArgGISC98697 | B35: C98697Software ArgGIS | D35: ESRI | E35: C98697 | F35: Software ArgGIS | G35: ESRI | H35: USD | I35: N/A | J35: ArcGIS Publisher for Desktop Concurrent Secondary actualización | K35: Licencia | L35: Und | M35: Actualización | N35: N/A | O35: N/A | P35: N/A | Q35: C98697 | R35: Credito a 30 días | S35: 652.05 | T35: 1 | U35: 0 | V35: USD
A36: ESRISoftware ArgGISC100571 | B36: C100571Software ArgGIS | D36: ESRI | E36: C100571 | F36: Software ArgGIS | G36: ESRI | H36: USD | I36: N/A | J36: ArcGIS Network Analyst for Desktop Concurrent Primary actualización | K36: Licencia | L36: Und | M36: Actualización | N36: N/A | O36: N/A | P36: N/A | Q36: C100571 | R36: Credito a 30 días | S36: 1630.125 | T36: 1 | U36: 0 | V36: USD
A37: ESRISoftware ArgGISC100572 | B37: C100572Software ArgGIS | D37: ESRI | E37: C100572 | F37: Software ArgGIS | G37: ESRI | H37: USD | I37: N/A | J37: ArcGIS Network Analyst for Desktop Concurrent Secondary actualización | K37: Licencia | L37: Und | M37: Actualización | N37: N/A | O37: N/A | P37: N/A | Q37: C100572 | R37: Credito a 30 días | S37: 652.05 | T37: 1 | U37: 0 | V37: USD
A38: ESRISoftware ArgGISC100573 | B38: C100573Software ArgGIS | D38: ESRI | E38: C100573 | F38: Software ArgGIS | G38: ESRI | H38: USD | I38: N/A | J38: ArcGIS Schematics for Desktop Concurrent Primary actualización | K38: Licencia | L38: Und | M38: Actualización | N38: N/A | O38: N/A | P38: N/A | Q38: C100573 | R38: Credito a 30 días | S38: 1630.125 | T38: 1 | U38: 0 | V38: USD
A39: ESRISoftware ArgGISC100574 | B39: C100574Software ArgGIS | D39: ESRI | E39: C100574 | F39: Software ArgGIS | G39: ESRI | H39: USD | I39: N/A | J39: ArcGIS Schematics for Desktop Concurrent Secondary actualización | K39: Licencia | L39: Und | M39: Actualización | N39: N/A | O39: N/A | P39: N/A | Q39: C100574 | R39: Credito a 30 días | S39: 652.05 | T39: 1 | U39: 0 | V39: USD
A40: ESRISoftware ArgGISC118242 | B40: C118242Software ArgGIS | D40: ESRI | E40: C118242 | F40: Software ArgGIS | G40: ESRI | H40: USD | I40: N/A | J40: ArcGIS Data Reviewer for Desktop Concurrent Primary actualización | K40: Licencia | L40: Und | M40: Actualización | N40: N/A | O40: N/A | P40: N/A | Q40: C118242 | R40: Credito a 30 días | S40: 1630.125 | T40: 1 | U40: 0 | V40: USD
A41: ESRISoftware ArgGISC118243 | B41: C118243Software ArgGIS | D41: ESRI | E41: C118243 | F41: Software ArgGIS | G41: ESRI | H41: USD | I41: N/A | J41: ArcGIS Data Reviewer for Desktop Concurrent Secondary actualización | K41: Licencia | L41: Und | M41: Actualización | N41: N/A | O41: N/A | P41: N/A | Q41: C118243 | R41: Credito a 30 días | S41: 652.05 | T41: 1 | U41: 0 | V41: USD
A42: ESRISoftware ArgGISC121804 | B42: C121804Software ArgGIS | D42: ESRI | E42: C121804 | F42: Software ArgGIS | G42: ESRI | H42: USD | I42: N/A | J42: Esri Production Mapping for Desktop Single Use actualización | K42: Licencia | L42: Und | M42: Actualización | N42: N/A | O42: N/A | P42: N/A | Q42: C121804 | R42: Credito a 30 días | S42: 8150.625 | T42: 1 | U42: 0 | V42: USD
A43: ESRISoftware ArgGISC121805 | B43: C121805Software ArgGIS | D43: ESRI | E43: C121805 | F43: Software ArgGIS | G43: ESRI | H43: USD | I43: N/A | J43: Esri Production Mapping for Desktop Concurrent Use actualización | K43: Licencia | L43: Und | M43: Actualización | N43: N/A | O43: N/A | P43: N/A | Q43: C121805 | R43: Credito a 30 días | S43: 8150.625 | T43: 1 | U43: 0 | V43: USD
A44: ESRISoftware ArgGISC121810 | B44: C121810Software ArgGIS | D44: ESRI | E44: C121810 | F44: Software ArgGIS | G44: ESRI | H44: USD | I44: N/A | J44: Esri Defense Mapping for Desktop Single Use actualización | K44: Licencia | L44: Und | M44: Actualización | N44: N/A | O44: N/A | P44: N/A | Q44: C121810 | R44: Credito a 30 días | S44: 8150.625 | T44: 1 | U44: 0 | V44: USD
A45: ESRISoftware ArgGISC121871 | B45: C121871Software ArgGIS | D45: ESRI | E45: C121871 | F45: Software ArgGIS | G45: ESRI | H45: USD | I45: N/A | J45: Esri Defense Mapping for Desktop Concurrent Use actualización | K45: Licencia | L45: Und | M45: Actualización | N45: N/A | O45: N/A | P45: N/A | Q45: C121871 | R45: Credito a 30 días | S45: 8150.625 | T45: 1 | U45: 0 | V45: USD
A46: ESRISoftware ArgGISC121872 | B46: C121872Software ArgGIS | D46: ESRI | E46: C121872 | F46: Software ArgGIS | G46: ESRI | H46: USD | I46: N/A | J46: ArcGIS for Aviation: Charting for Desktop Single Use actualización | K46: Licencia | L46: Und | M46: Actualización | N46: N/A | O46: N/A | P46: N/A | Q46: C121872 | R46: Credito a 30 días | S46: 8150.625 | T46: 1 | U46: 0 | V46: USD
A47: ESRISoftware ArgGISC121873 | B47: C121873Software ArgGIS | D47: ESRI | E47: C121873 | F47: Software ArgGIS | G47: ESRI | H47: USD | I47: N/A | J47: ArcGIS for Aviation: Charting for Desktop Concurrent Use actualización | K47: Licencia | L47: Und | M47: Actualización | N47: N/A | O47: N/A | P47: N/A | Q47: C121873 | R47: Credito a 30 días | S47: 8150.625 | T47: 1 | U47: 0 | V47: USD
A48: ESRISoftware ArgGISC121874 | B48: C121874Software ArgGIS | D48: ESRI | E48: C121874 | F48: Software ArgGIS | G48: ESRI | H48: USD | I48: N/A | J48: ArcGIS For Maritime: Charting for Desktop Single Use actualización | K48: Licencia | L48: Und | M48: Actualización | N48: N/A | O48: N/A | P48: N/A | Q48: C121874 | R48: Credito a 30 días | S48: 8150.625 | T48: 1 | U48: 0 | V48: USD
A49: ESRISoftware ArgGISC121875 | B49: C121875Software ArgGIS | D49: ESRI | E49: C121875 | F49: Software ArgGIS | G49: ESRI | H49: USD | I49: N/A | J49: ArcGIS For Maritime: Charting for Desktop Concurrent Use actualización | K49: Licencia | L49: Und | M49: Actualización | N49: N/A | O49: N/A | P49: N/A | Q49: C121875 | R49: Credito a 30 días | S49: 8150.625 | T49: 1 | U49: 0 | V49: USD
A50: ESRISoftware ArgGISC122181 | B50: C122181Software ArgGIS | D50: ESRI | E50: C122181 | F50: Software ArgGIS | G50: ESRI | H50: USD | I50: N/A | J50: ArcGIS for Desktop Advanced Single Primary actualización | K50: Licencia | L50: Und | M50: Actualización | N50: N/A | O50: N/A | P50: N/A | Q50: C122181 | R50: Credito a 30 días | S50: 9768.6 | T50: 1 | U50: 0 | V50: USD
A51: ESRISoftware ArgGISC122183 | B51: C122183Software ArgGIS | D51: ESRI | E51: C122183 | F51: Software ArgGIS | G51: ESRI | H51: USD | I51: N/A | J51: ArcGIS for Desktop Advanced Single Secondary actualización | K51: Licencia | L51: Und | M51: Actualización | N51: N/A | O51: N/A | P51: N/A | Q51: C122183 | R51: Credito a 30 días | S51: 3907.45 | T51: 1 | U51: 0 | V51: USD
A52: ESRISoftware ArgGISC122184 | B52: C122184Software ArgGIS | D52: ESRI | E52: C122184 | F52: Software ArgGIS | G52: ESRI | H52: USD | I52: N/A | J52: ArcGIS 3D Analyst for Desktop Single Use Primary actualización | K52: Licencia | L52: Und | M52: Actualización | N52: N/A | O52: N/A | P52: N/A | Q52: C122184 | R52: Credito a 30 días | S52: 1630.125 | T52: 1 | U52: 0 | V52: USD
A53: ESRISoftware ArgGISC122185 | B53: C122185Software ArgGIS | D53: ESRI | E53: C122185 | F53: Software ArgGIS | G53: ESRI | H53: USD | I53: N/A | J53: ArcGIS 3D Analyst for Desktop Single Use Secondary actualización | K53: Licencia | L53: Und | M53: Actualización | N53: N/A | O53: N/A | P53: N/A | Q53: C122185 | R53: Credito a 30 días | S53: 651.25 | T53: 1 | U53: 0 | V53: USD
A54: ESRISoftware ArgGISC122187 | B54: C122187Software ArgGIS | D54: ESRI | E54: C122187 | F54: Software ArgGIS | G54: ESRI | H54: USD | I54: N/A | J54: ArcGIS Spatial Analyst for Desktop Single Use Primary actualización | K54: Licencia | L54: Und | M54: Actualización | N54: N/A | O54: N/A | P54: N/A | Q54: C122187 | R54: Credito a 30 días | S54: 1630.125 | T54: 1 | U54: 0 | V54: USD
A55: ESRISoftware ArgGISC122188 | B55: C122188Software ArgGIS | D55: ESRI | E55: C122188 | F55: Software ArgGIS | G55: ESRI | H55: USD | I55: N/A | J55: ArcGIS Spatial Analyst for Desktop Single Use Secondary actualización | K55: Licencia | L55: Und | M55: Actualización | N55: N/A | O55: N/A | P55: N/A | Q55: C122188 | R55: Credito a 30 días | S55: 651.25 | T55: 1 | U55: 0 | V55: USD
A56: ESRISoftware ArgGISC122189 | B56: C122189Software ArgGIS | D56: ESRI | E56: C122189 | F56: Software ArgGIS | G56: ESRI | H56: USD | I56: N/A | J56: ArcGIS Geostatistical Analyst for Desktop Single Use Primary actualización | K56: Licencia | L56: Und | M56: Actualización | N56: N/A | O56: N/A | P56: N/A | Q56: C122189 | R56: Credito a 30 días | S56: 1630.125 | T56: 1 | U56: 0 | V56: USD
A57: ESRISoftware ArgGISC122190 | B57: C122190Software ArgGIS | D57: ESRI | E57: C122190 | F57: Software ArgGIS | G57: ESRI | H57: USD | I57: N/A | J57: ArcGIS Geostatistical Analyst for Desktop Single Use Secondary actualización | K57: Licencia | L57: Und | M57: Actualización | N57: N/A | O57: N/A | P57: N/A | Q57: C122190 | R57: Credito a 30 días | S57: 651.25 | T57: 1 | U57: 0 | V57: USD
A58: ESRISoftware ArgGISC122191 | B58: C122191Software ArgGIS | D58: ESRI | E58: C122191 | F58: Software ArgGIS | G58: ESRI | H58: USD | I58: N/A | J58: ArcGIS Tracking Analyst for Desktop Single Use Primary actualización | K58: Licencia | L58: Und | M58: Actualización | N58: N/A | O58: N/A | P58: N/A | Q58: C122191 | R58: Credito a 30 días | S58: 1630.125 | T58: 1 | U58: 0 | V58: USD
A59: ESRISoftware ArgGISC122192 | B59: C122192Software ArgGIS | D59: ESRI | E59: C122192 | F59: Software ArgGIS | G59: ESRI | H59: USD | I59: N/A | J59: ArcGIS Tracking Analyst for Desktop Single Use Secondary actualización | K59: Licencia | L59: Und | M59: Actualización | N59: N/A | O59: N/A | P59: N/A | Q59: C122192 | R59: Credito a 30 días | S59: 652.05 | T59: 1 | U59: 0 | V59: USD
A60: ESRISoftware ArgGISC122195 | B60: C122195Software ArgGIS | D60: ESRI | E60: C122195 | F60: Software ArgGIS | G60: ESRI | H60: USD | I60: N/A | J60: ArcGIS Data Reviewer for Desktop Single Use Primary actualización | K60: Licencia | L60: Und | M60: Actualización | N60: N/A | O60: N/A | P60: N/A | Q60: C122195 | R60: Credito a 30 días | S60: 1630.125 | T60: 1 | U60: 0 | V60: USD
A61: ESRISoftware ArgGISC122196 | B61: C122196Software ArgGIS | D61: ESRI | E61: C122196 | F61: Software ArgGIS | G61: ESRI | H61: USD | I61: N/A | J61: ArcGIS Data Reviewer for Desktop Single Use Secondary actualización | K61: Licencia | L61: Und | M61: Actualización | N61: N/A | O61: N/A | P61: N/A | Q61: C122196 | R61: Credito a 30 días | S61: 651.25 | T61: 1 | U61: 0 | V61: USD
A62: ESRISoftware ArgGISC122197 | B62: C122197Software ArgGIS | D62: ESRI | E62: C122197 | F62: Software ArgGIS | G62: ESRI | H62: USD | I62: N/A | J62: ArcGIS Publisher for Desktop Single Use Primary actualización | K62: Licencia | L62: Und | M62: Actualización | N62: N/A | O62: N/A | P62: N/A | Q62: C122197 | R62: Credito a 30 días | S62: 1630.125 | T62: 1 | U62: 0 | V62: USD
A63: ESRISoftware ArgGISC122270 | B63: C122270Software ArgGIS | D63: ESRI | E63: C122270 | F63: Software ArgGIS | G63: ESRI | H63: USD | I63: N/A | J63: ArcGIS Publisher for Desktop Single Use Secondary actualización | K63: Licencia | L63: Und | M63: Actualización | N63: N/A | O63: N/A | P63: N/A | Q63: C122270 | R63: Credito a 30 días | S63: 651.25 | T63: 1 | U63: 0 | V63: USD
A64: ESRISoftware ArgGISC122275 | B64: C122275Software ArgGIS | D64: ESRI | E64: C122275 | F64: Software ArgGIS | G64: ESRI | H64: USD | I64: N/A | J64: ArcGIS Data Interoperability for Desktop Single use Primary actualización | K64: Licencia | L64: Und | M64: Actualización | N64: N/A | O64: N/A | P64: N/A | Q64: C122275 | R64: Credito a 30 días | S64: 1630.125 | T64: 1 | U64: 0 | V64: USD
A65: ESRISoftware ArgGISC122276 | B65: C122276Software ArgGIS | D65: ESRI | E65: C122276 | F65: Software ArgGIS | G65: ESRI | H65: USD | I65: N/A | J65: ArcGIS Data Interoperability for Desktop Advanced Single Secondary actualización | K65: Licencia | L65: Und | M65: Actualización | N65: N/A | O65: N/A | P65: N/A | Q65: C122276 | R65: Credito a 30 días | S65: 651.25 | T65: 1 | U65: 0 | V65: USD
A66: =D66&F66&E66 -> ESRISoftware ArgGISC122277 | B66: =E66&F66 -> C122277Software ArgGIS | D66: ESRI | E66: C122277 | F66: Software ArgGIS | G66: ESRI | H66: USD | I66: N/A | J66: ArcGIS Network Analyst for Desktop Single Use Primary actualización | K66: Licencia | L66: Und | M66: Actualización | N66: N/A | O66: N/A | P66: N/A | Q66: =+E66 -> C122277 | R66: Credito a 30 días | S66: 1630.125 | T66: 1 | U66: 0 | V66: USD
A67: ESRISoftware ArgGISC122278 | B67: C122278Software ArgGIS | D67: ESRI | E67: C122278 | F67: Software ArgGIS | G67: ESRI | H67: USD | I67: N/A | J67: ArcGIS Network Analyst for Desktop Single Use Secondary actualización | K67: Licencia | L67: Und | M67: Actualización | N67: N/A | O67: N/A | P67: N/A | Q67: C122278 | R67: Credito a 30 días | S67: 651.25 | T67: 1 | U67: 0 | V67: USD
A68: ESRISoftware ArgGISC122279 | B68: C122279Software ArgGIS | D68: ESRI | E68: C122279 | F68: Software ArgGIS | G68: ESRI | H68: USD | I68: N/A | J68: ArcGIS Schematics for Desktop Single Use Primary actualización | K68: Licencia | L68: Und | M68: Actualización | N68: N/A | O68: N/A | P68: N/A | Q68: C122279 | R68: Credito a 30 días | S68: 1628.1 | T68: 1 | U68: 0 | V68: USD
A69: ESRISoftware ArgGISC122280 | B69: C122280Software ArgGIS | D69: ESRI | E69: C122280 | F69: Software ArgGIS | G69: ESRI | H69: USD | I69: N/A | J69: ArcGIS Schematics for Desktop Single Use Secondary actualización | K69: Licencia | L69: Und | M69: Actualización | N69: N/A | O69: N/A | P69: N/A | Q69: C122280 | R69: Credito a 30 días | S69: 651.25 | T69: 1 | U69: 0 | V69: USD
A70: ESRISoftware ArgGISC122281 | B70: C122281Software ArgGIS | D70: ESRI | E70: C122281 | F70: Software ArgGIS | G70: ESRI | H70: USD | I70: N/A | J70: ArcGIS Workflow Manager (Classic) for Desktop Single Use Primary actualización | K70: Licencia | L70: Und | M70: Actualización | N70: N/A | O70: N/A | P70: N/A | Q70: C122281 | R70: Credito a 30 días | S70: 1630.125 | T70: 1 | U70: 0 | V70: USD
A71: ESRISoftware ArgGISC122282 | B71: C122282Software ArgGIS | D71: ESRI | E71: C122282 | F71: Software ArgGIS | G71: ESRI | H71: USD | I71: N/A | J71: ArcGIS Workflow Manager (Classic) for Desktop Single Use Secondary Actualización | K71: Licencia | L71: Und | M71: Actualización | N71: N/A | O71: N/A | P71: N/A | Q71: C122282 | R71: Credito a 30 días | S71: 652.05 | T71: 1 | U71: 0 | V71: USD
A72: ESRISoftware ArgGISC122283 | B72: C122283Software ArgGIS | D72: ESRI | E72: C122283 | F72: Software ArgGIS | G72: ESRI | H72: USD | I72: N/A | J72: ArcGIS Engine Concurrent Primary actualización | K72: Licencia | L72: Und | M72: Actualización | N72: N/A | O72: N/A | P72: N/A | Q72: C122283 | R72: Credito a 30 días | S72: 815.075 | T72: 1 | U72: 0 | V72: USD
A73: ESRISoftware ArgGISC122284 | B73: C122284Software ArgGIS | D73: ESRI | E73: C122284 | F73: Software ArgGIS | G73: ESRI | H73: USD | I73: N/A | J73: ArcGIS 3D Analyst for Engine Concurrent Primary actualización | K73: Licencia | L73: Und | M73: Actualización | N73: N/A | O73: N/A | P73: N/A | Q73: C122284 | R73: Credito a 30 días | S73: 652.05 | T73: 1 | U73: 0 | V73: USD
A74: ESRISoftware ArgGISC122285 | B74: C122285Software ArgGIS | D74: ESRI | E74: C122285 | F74: Software ArgGIS | G74: ESRI | H74: USD | I74: N/A | J74: ArcGIS Spatial Analyst for Engine Concurrent Primary actualización | K74: Licencia | L74: Und | M74: Actualización | N74: N/A | O74: N/A | P74: N/A | Q74: C122285 | R74: Credito a 30 días | S74: 652.05 | T74: 1 | U74: 0 | V74: USD
A75: ESRISoftware ArgGISC122286 | B75: C122286Software ArgGIS | D75: ESRI | E75: C122286 | F75: Software ArgGIS | G75: ESRI | H75: USD | I75: N/A | J75: ArcGIS Engine Geodatabase Update Concurrent Primary actualización | K75: Licencia | L75: Und | M75: Actualización | N75: N/A | O75: N/A | P75: N/A | Q75: C122286 | R75: Credito a 30 días | S75: 652.05 | T75: 1 | U75: 0 | V75: USD
A76: ESRISoftware ArgGISC122287 | B76: C122287Software ArgGIS | D76: ESRI | E76: C122287 | F76: Software ArgGIS | G76: ESRI | H76: USD | I76: N/A | J76: ArcGIS Network Analyst for Engine Concurrent Primary actualización | K76: Licencia | L76: Und | M76: Actualización | N76: N/A | O76: N/A | P76: N/A | Q76: C122287 | R76: Credito a 30 días | S76: 652.05 | T76: 1 | U76: 0 | V76: USD
A77: ESRISoftware ArgGISC122288 | B77: C122288Software ArgGIS | D77: ESRI | E77: C122288 | F77: Software ArgGIS | G77: ESRI | H77: USD | I77: N/A | J77: ArcGIS Tracking Analyst for Engine Concurrent Primary actualización | K77: Licencia | L77: Und | M77: Actualización | N77: N/A | O77: N/A | P77: N/A | Q77: C122288 | R77: Credito a 30 días | S77: 652.05 | T77: 1 | U77: 0 | V77: USD
A78: ESRISoftware ArgGISC122290 | B78: C122290Software ArgGIS | D78: ESRI | E78: C122290 | F78: Software ArgGIS | G78: ESRI | H78: USD | I78: N/A | J78: ArcGIS Data Interoperability for Engine Concurrent Primary actualización | K78: Licencia | L78: Und | M78: Actualización | N78: N/A | O78: N/A | P78: N/A | Q78: C122290 | R78: Credito a 30 días | S78: 652.05 | T78: 1 | U78: 0 | V78: USD
A79: ESRISoftware ArgGISC122291 | B79: C122291Software ArgGIS | D79: ESRI | E79: C122291 | F79: Software ArgGIS | G79: ESRI | H79: USD | I79: N/A | J79: ArcGIS Schematics for Engine Concurrent Primary actualización | K79: Licencia | L79: Und | M79: Actualización | N79: N/A | O79: N/A | P79: N/A | Q79: C122291 | R79: Credito a 30 días | S79: 652.05 | T79: 1 | U79: 0 | V79: USD
A80: ESRISoftware ArgGISC122292 | B80: C122292Software ArgGIS | D80: ESRI | E80: C122292 | F80: Software ArgGIS | G80: ESRI | H80: USD | I80: N/A | J80: ArcGIS Engine Concurrent Secondary actualización | K80: Licencia | L80: Und | M80: Actualización | N80: N/A | O80: N/A | P80: N/A | Q80: C122292 | R80: Credito a 30 días | S80: 603.15 | T80: 1 | U80: 0 | V80: USD
A81: ESRISoftware ArgGISC122293 | B81: C122293Software ArgGIS | D81: ESRI | E81: C122293 | F81: Software ArgGIS | G81: ESRI | H81: USD | I81: N/A | J81: ArcGIS 3D Analyst for Engine Concurrent Secondary actualización | K81: Licencia | L81: Und | M81: Actualización | N81: N/A | O81: N/A | P81: N/A | Q81: C122293 | R81: Credito a 30 días | S81: 489.05 | T81: 1 | U81: 0 | V81: USD
A82: ESRISoftware ArgGISC122294 | B82: C122294Software ArgGIS | D82: ESRI | E82: C122294 | F82: Software ArgGIS | G82: ESRI | H82: USD | I82: N/A | J82: ArcGIS Spatial Analyst for Engine Concurrent Secondary actualización | K82: Licencia | L82: Und | M82: Actualización | N82: N/A | O82: N/A | P82: N/A | Q82: C122294 | R82: Credito a 30 días | S82: 489.05 | T82: 1 | U82: 0 | V82: USD
A83: ESRISoftware ArgGISC122295 | B83: C122295Software ArgGIS | D83: ESRI | E83: C122295 | F83: Software ArgGIS | G83: ESRI | H83: USD | I83: N/A | J83: ArcGIS Engine Geodatabase Update Concurrent Secondary actualización | K83: Licencia | L83: Und | M83: Actualización | N83: N/A | O83: N/A | P83: N/A | Q83: C122295 | R83: Credito a 30 días | S83: 489.05 | T83: 1 | U83: 0 | V83: USD
A84: ESRISoftware ArgGISC122296 | B84: C122296Software ArgGIS | D84: ESRI | E84: C122296 | F84: Software ArgGIS | G84: ESRI | H84: USD | I84: N/A | J84: ArcGIS Network Analyst for Engine Concurrent Secondary actualización | K84: Licencia | L84: Und | M84: Actualización | N84: N/A | O84: N/A | P84: N/A | Q84: C122296 | R84: Credito a 30 días | S84: 489.05 | T84: 1 | U84: 0 | V84: USD
A85: ESRISoftware ArgGISC122297 | B85: C122297Software ArgGIS | D85: ESRI | E85: C122297 | F85: Software ArgGIS | G85: ESRI | H85: USD | I85: N/A | J85: ArcGIS Tracking Analyst for Engine Concurrent Secondary actualización | K85: Licencia | L85: Und | M85: Actualización | N85: N/A | O85: N/A | P85: N/A | Q85: C122297 | R85: Credito a 30 días | S85: 489.05 | T85: 1 | U85: 0 | V85: USD
A86: ESRISoftware ArgGISC122299 | B86: C122299Software ArgGIS | D86: ESRI | E86: C122299 | F86: Software ArgGIS | G86: ESRI | H86: USD | I86: N/A | J86: ArcGIS Data Interoperability for Engine Concurrent Secondary actualización | K86: Licencia | L86: Und | M86: Actualización | N86: N/A | O86: N/A | P86: N/A | Q86: C122299 | R86: Credito a 30 días | S86: 489.05 | T86: 1 | U86: 0 | V86: USD
A87: ESRISoftware ArgGISC122300 | B87: C122300Software ArgGIS | D87: ESRI | E87: C122300 | F87: Software ArgGIS | G87: ESRI | H87: USD | I87: N/A | J87: ArcGIS Schematics for Engine Concurrent Secondary actualización | K87: Licencia | L87: Und | M87: Actualización | N87: N/A | O87: N/A | P87: N/A | Q87: C122300 | R87: Credito a 30 días | S87: 489.05 | T87: 1 | U87: 0 | V87: USD
A88: ESRISoftware ArgGISC154880 | B88: C154880Software ArgGIS | D88: ESRI | E88: C154880 | F88: Software ArgGIS | G88: ESRI | H88: USD | I88: N/A | J88: ArcGIS Aviation Charting for ArcGIS Desktop Single Use Actualización Bundle | K88: Licencia | L88: Und | M88: Actualización | N88: N/A | O88: N/A | P88: N/A | Q88: C154880 | R88: Credito a 30 días | S88: 21191.625 | T88: 1 | U88: 0 | V88: USD
A89: ESRISoftware ArgGISC123515 | B89: C123515Software ArgGIS | D89: ESRI | E89: C123515 | F89: Software ArgGIS | G89: ESRI | H89: USD | I89: N/A | J89: Esri Defense Mapping for Desktop Concurrent Use actualización Bundle | K89: Licencia | L89: Und | M89: Actualización | N89: N/A | O89: N/A | P89: N/A | Q89: C123515 | R89: Credito a 30 días | S89: 21191.625 | T89: 1 | U89: 0 | V89: USD
A90: ESRISoftware ArgGISC127623 | B90: C127623Software ArgGIS | D90: ESRI | E90: C127623 | F90: Software ArgGIS | G90: ESRI | H90: USD | I90: N/A | J90: Esri CityEngine Basic Single Primary actualización | K90: Licencia | L90: Und | M90: Actualización | N90: N/A | O90: N/A | P90: N/A | Q90: C127623 | R90: Credito a 30 días | S90: 326.025 | T90: 1 | U90: 0 | V90: USD
A91: ESRISoftware ArgGISC127624 | B91: C127624Software ArgGIS | D91: ESRI | E91: C127624 | F91: Software ArgGIS | G91: ESRI | H91: USD | I91: N/A | J91: Esri CityEngine Basic Single Secondary actualización | K91: Licencia | L91: Und | M91: Actualización | N91: N/A | O91: N/A | P91: N/A | Q91: C127624 | R91: Credito a 30 días | S91: 277.125 | T91: 1 | U91: 0 | V91: USD
A92: ESRISoftware ArgGISC127625 | B92: C127625Software ArgGIS | D92: ESRI | E92: C127625 | F92: Software ArgGIS | G92: ESRI | H92: USD | I92: N/A | J92: Esri CityEngine Advanced Single Primary actualización | K92: Licencia | L92: Und | M92: Actualización | N92: N/A | O92: N/A | P92: N/A | Q92: C127625 | R92: Credito a 30 días | S92: 2608.2 | T92: 1 | U92: 0 | V92: USD
A93: ESRISoftware ArgGISC127626 | B93: C127626Software ArgGIS | D93: ESRI | E93: C127626 | F93: Software ArgGIS | G93: ESRI | H93: USD | I93: N/A | J93: Esri CityEngine Advanced Concurrent Primary actualización | K93: Licencia | L93: Und | M93: Actualización | N93: N/A | O93: N/A | P93: N/A | Q93: C127626 | R93: Credito a 30 días | S93: 2608.2 | T93: 1 | U93: 0 | V93: USD
A94: ESRISoftware ArgGISC127627 | B94: C127627Software ArgGIS | D94: ESRI | E94: C127627 | F94: Software ArgGIS | G94: ESRI | H94: USD | I94: N/A | J94: Esri CityEngine Advanced Single Secondary actualización | K94: Licencia | L94: Und | M94: Actualización | N94: N/A | O94: N/A | P94: N/A | Q94: C127627 | R94: Credito a 30 días | S94: 2200.65 | T94: 1 | U94: 0 | V94: USD
A95: ESRISoftware ArgGISC127657 | B95: C127657Software ArgGIS | D95: ESRI | E95: C127657 | F95: Software ArgGIS | G95: ESRI | H95: USD | I95: N/A | J95: Esri CityEngine Advanced Concurrent Secondary actualización | K95: Licencia | L95: Und | M95: Actualización | N95: N/A | O95: N/A | P95: N/A | Q95: C127657 | R95: Credito a 30 días | S95: 2200.65 | T95: 1 | U95: 0 | V95: USD
A96: ESRISoftware ArgGISC128916 | B96: C128916Software ArgGIS | D96: ESRI | E96: C128916 | F96: Software ArgGIS | G96: ESRI | H96: USD | I96: N/A | J96: Esri Roads and Highways for Desktop Concurrent Use actualización | K96: Licencia | L96: Und | M96: Actualización | N96: N/A | O96: N/A | P96: N/A | Q96: C128916 | R96: Credito a 30 días | S96: 8150.625 | T96: 1 | U96: 0 | V96: USD
A97: ESRISoftware ArgGISC130909 | B97: C130909Software ArgGIS | D97: ESRI | E97: C130909 | F97: Software ArgGIS | G97: ESRI | H97: USD | I97: N/A | J97: ArcGIS for Maritime: Charting for Desktop Bundle Concurrent Use actualización | K97: Licencia | L97: Und | M97: Actualización | N97: N/A | O97: N/A | P97: N/A | Q97: C130909 | R97: Credito a 30 días | S97: 19561.5 | T97: 1 | U97: 0 | V97: USD
A98: ESRISoftware ArgGISC130922 | B98: C130922Software ArgGIS | D98: ESRI | E98: C130922 | F98: Software ArgGIS | G98: ESRI | H98: USD | I98: N/A | J98: ArcGIS for Maritime: Bathymetry for Desktop Single Use actualización | K98: Licencia | L98: Und | M98: Actualización | N98: N/A | O98: N/A | P98: N/A | Q98: C130922 | R98: Credito a 30 días | S98: 4075.325 | T98: 1 | U98: 0 | V98: USD
A99: ESRISoftware ArgGISC130923 | B99: C130923Software ArgGIS | D99: ESRI | E99: C130923 | F99: Software ArgGIS | G99: ESRI | H99: USD | I99: N/A | J99: ArcGIS for Maritime: Bathymetry for Desktop Concurrent Use actualización | K99: Licencia | L99: Und | M99: Actualización | N99: N/A | O99: N/A | P99: N/A | Q99: C130923 | R99: Credito a 30 días | S99: 4075.325 | T99: 1 | U99: 0 | V99: USD
A100: ESRISoftware ArgGISC130942 | B100: C130942Software ArgGIS | D100: ESRI | E100: C130942 | F100: Software ArgGIS | G100: ESRI | H100: USD | I100: N/A | J100: ArcGIS for Maritime: Bathymetry for Desktop Bundle Single Use actualización | K100: Licencia | L100: Und | M100: Actualización | N100: N/A | O100: N/A | P100: N/A | Q100: C130942 | R100: Credito a 30 días | S100: 10921.85 | T100: 1 | U100: 0 | V100: USD
A101: ESRISoftware ArgGISC130943 | B101: C130943Software ArgGIS | D101: ESRI | E101: C130943 | F101: Software ArgGIS | G101: ESRI | H101: USD | I101: N/A | J101: ArcGIS for Maritime: Bathymetry for Desktop Bundle Concurrent Use actualización | K101: Licencia | L101: Und | M101: Actualización | N101: N/A | O101: N/A | P101: N/A | Q101: C130943 | R101: Credito a 30 días | S101: 10595.825 | T101: 1 | U101: 0 | V101: USD
A102: ESRISoftware ArgGISC133018 | B102: C133018Software ArgGIS | D102: ESRI | E102: C133018 | F102: Software ArgGIS | G102: ESRI | H102: USD | I102: N/A | J102: ArcGIS for Aviation: Airports for Desktop Single Use actualización Bundle | K102: Licencia | L102: Und | M102: Actualización | N102: N/A | O102: N/A | P102: N/A | Q102: C133018 | R102: Credito a 30 días | S102: 8964 | T102: 1 | U102: 0 | V102: USD
A103: ESRISoftware ArgGISC133019 | B103: C133019Software ArgGIS | D103: ESRI | E103: C133019 | F103: Software ArgGIS | G103: ESRI | H103: USD | I103: N/A | J103: ArcGIS for Aviation: Airports Concurrent Use actualización Bundle | K103: Licencia | L103: Und | M103: Actualización | N103: N/A | O103: N/A | P103: N/A | Q103: C133019 | R103: Credito a 30 días | S103: 8964 | T103: 1 | U103: 0 | V103: USD
A104: ESRISoftware ArgGISC133033 | B104: C133033Software ArgGIS | D104: ESRI | E104: C133033 | F104: Software ArgGIS | G104: ESRI | H104: USD | I104: N/A | J104: ArcGIS for Aviation: Airports for Desktop Single Use actualización | K104: Licencia | L104: Und | M104: Actualización | N104: N/A | O104: N/A | P104: N/A | Q104: C133033 | R104: Credito a 30 días | S104: 4075.325 | T104: 1 | U104: 0 | V104: USD
A105: ESRISoftware ArgGISC133034 | B105: C133034Software ArgGIS | D105: ESRI | E105: C133034 | F105: Software ArgGIS | G105: ESRI | H105: USD | I105: N/A | J105: ArcGIS for Aviation: Airports for Desktop Concurrent Use actualización | K105: Licencia | L105: Und | M105: Actualización | N105: N/A | O105: N/A | P105: N/A | Q105: C133034 | R105: Credito a 30 días | S105: 4075.325 | T105: 1 | U105: 0 | V105: USD
A106: ESRISoftware ArgGISC133196 | B106: C133196Software ArgGIS | D106: ESRI | E106: C133196 | F106: Software ArgGIS | G106: ESRI | H106: USD | I106: N/A | J106: Esri Roads and Highways for Desktop Single Use actualización | K106: Licencia | L106: Und | M106: Actualización | N106: N/A | O106: N/A | P106: N/A | Q106: C133196 | R106: Credito a 30 días | S106: 8150.625 | T106: 1 | U106: 0 | V106: USD
A107: ESRISoftware ArgGISC151823 | B107: C151823Software ArgGIS | D107: ESRI | E107: C151823 | F107: Software ArgGIS | G107: ESRI | H107: USD | I107: N/A | J107: Drone2Map for ArcGIS Online Term License | K107: Licencia/mes | L107: Und | M107: Licencias | N107: N/A | O107: N/A | P107: N/A | Q107: C151823 | R107: Credito a 30 días | S107: 163.0125 | T107: 1 | U107: 0 | V107: USD
A108: ESRISoftware ArgGISC153147 | B108: C153147Software ArgGIS | D108: ESRI | E108: C153147 | F108: Software ArgGIS | G108: ESRI | H108: USD | I108: N/A | J108: ArcGIS Online (Viewer) User Type Term License | K108: Licencia/mes | L108: Und | M108: Licencias | N108: N/A | O108: N/A | P108: N/A | Q108: C153147 | R108: Credito a 30 días | S108: 10.8675 | T108: 1 | U108: 0 | V108: USD
A109: ESRISoftware ArgGISC153148 | B109: C153148Software ArgGIS | D109: ESRI | E109: C153148 | F109: Software ArgGIS | G109: ESRI | H109: USD | I109: N/A | J109: ArcGIS Online (Creator) User Type Term License | K109: Licencia/mes | L109: Und | M109: Licencias | N109: N/A | O109: N/A | P109: N/A | Q109: C153148 | R109: Credito a 30 días | S109: 54.3375 | T109: 1 | U109: 0 | V109: USD
A110: ESRISoftware ArgGISC153373 | B110: C153373Software ArgGIS | D110: ESRI | E110: C153373 | F110: Software ArgGIS | G110: ESRI | H110: USD | I110: N/A | J110: ArcGIS Pipeline Referencing for Desktop actualización | K110: Licencia | L110: Und | M110: Actualización | N110: N/A | O110: N/A | P110: N/A | Q110: C153373 | R110: Credito a 30 días | S110: 8150.625 | T110: 1 | U110: 0 | V110: USD
A111: ESRISoftware ArgGISC153416 | B111: C153416Software ArgGIS | D111: ESRI | E111: C153416 | F111: Software ArgGIS | G111: ESRI | H111: USD | I111: N/A | J111: ArcGIS Business Analyst Web App Online Bundle Term License (1 ArcGIS Online Creator User, 1 user BA Web App, & credits) | K111: Licencia/mes | L111: Und | M111: Licencias | N111: N/A | O111: N/A | P111: N/A | Q111: C153416 | R111: Credito a 30 días | S111: 119.5425 | T111: 1 | U111: 0 | V111: USD
A112: ESRISoftware ArgGISC153417 | B112: C153417Software ArgGIS | D112: ESRI | E112: C153417 | F112: Software ArgGIS | G112: ESRI | H112: USD | I112: N/A | J112: ArcGIS Business Analyst Web App Single User Add-on for ArcGIS Online | K112: Licencia/mes | L112: Und | M112: Licencias | N112: N/A | O112: N/A | P112: N/A | Q112: C153417 | R112: Credito a 30 días | S112: 10.8675 | T112: 1 | U112: 0 | V112: USD
A113: ESRISoftware ArgGISC153418 | B113: C153418Software ArgGIS | D113: ESRI | E113: C153418 | F113: Software ArgGIS | G113: ESRI | H113: USD | I113: N/A | J113: ArcGIS Online Service Credits; Block of 1,000 | K113: paquete de creditos | L113: Und | M113: Licencias | N113: N/A | O113: N/A | P113: N/A | Q113: C153418 | R113: Credito a 30 días | S113: 130.41 | T113: 1 | U113: 0 | V113: USD
A114: ESRISoftware ArgGISC153543 | B114: C153543Software ArgGIS | D114: ESRI | E114: C153543 | F114: Software ArgGIS | G114: ESRI | H114: USD | I114: N/A | J114: ArcGIS Pipeline Referencing for ArcGIS GIS Server Standard (Windows) Up to Four Cores actualización | K114: Licencia | L114: Und | M114: Actualización | N114: N/A | O114: N/A | P114: N/A | Q114: C153543 | R114: Credito a 30 días | S114: 8150.625 | T114: 1 | U114: 0 | V114: USD
A115: ESRISoftware ArgGISC153544 | B115: C153544Software ArgGIS | D115: ESRI | E115: C153544 | F115: Software ArgGIS | G115: ESRI | H115: USD | I115: N/A | J115: ArcGIS Pipeline Referencing for ArcGIS GIS Server Advanced (Windows) Up to Four Cores actualización | K115: Licencia | L115: Und | M115: Actualización | N115: N/A | O115: N/A | P115: N/A | Q115: C153544 | R115: Credito a 30 días | S115: 8150.625 | T115: 1 | U115: 0 | V115: USD
A116: ESRISoftware ArgGISC153545 | B116: C153545Software ArgGIS | D116: ESRI | E116: C153545 | F116: Software ArgGIS | G116: ESRI | H116: USD | I116: N/A | J116: ArcGIS Pipeline Referencing for ArcGIS GIS Server Workgroup Standard Up to Four Cores actualización | K116: Licencia | L116: Und | M116: Actualización | N116: N/A | O116: N/A | P116: N/A | Q116: C153545 | R116: Credito a 30 días | S116: 4075.325 | T116: 1 | U116: 0 | V116: USD
A117: ESRISoftware ArgGISC153546 | B117: C153546Software ArgGIS | D117: ESRI | E117: C153546 | F117: Software ArgGIS | G117: ESRI | H117: USD | I117: N/A | J117: ArcGIS Pipeline Referencing for ArcGIS GIS Server Workgroup Advanced Up to Four Cores actualización | K117: Licencia | L117: Und | M117: Actualización | N117: N/A | O117: N/A | P117: N/A | Q117: C153546 | R117: Credito a 30 días | S117: 4075.325 | T117: 1 | U117: 0 | V117: USD
A118: ESRISoftware ArgGISC153547 | B118: C153547Software ArgGIS | D118: ESRI | E118: C153547 | F118: Software ArgGIS | G118: ESRI | H118: USD | I118: N/A | J118: ArcGIS Pipeline Referencing for ArcGIS GIS Server Standard (Windows) Additional Core actualización | K118: Licencia | L118: Und | M118: Actualización | N118: N/A | O118: N/A | P118: N/A | Q118: C153547 | R118: Credito a 30 días | S118: 2037.675 | T118: 1 | U118: 0 | V118: USD
A119: ESRISoftware ArgGISC153548 | B119: C153548Software ArgGIS | D119: ESRI | E119: C153548 | F119: Software ArgGIS | G119: ESRI | H119: USD | I119: N/A | J119: ArcGIS Pipeline Referencing for ArcGIS GIS Server Advanced (Windows) Additional Core actualización | K119: Licencia | L119: Und | M119: Actualización | N119: N/A | O119: N/A | P119: N/A | Q119: C153548 | R119: Credito a 30 días | S119: 2037.675 | T119: 1 | U119: 0 | V119: USD
A120: ESRISoftware ArgGISC154097 | B120: C154097Software ArgGIS | D120: ESRI | E120: C154097 | F120: Software ArgGIS | G120: ESRI | H120: USD | I120: N/A | J120: ArcGIS Enterprise Creator (Formerly Named User Level 2) actualización | K120: Licencia | L120: Und | M120: Actualización | N120: N/A | O120: N/A | P120: N/A | Q120: C154097 | R120: Credito a 30 días | S120: 1630.125 | T120: 1 | U120: 0 | V120: USD
A121: ESRISoftware ArgGISC154300 | B121: C154300Software ArgGIS | D121: ESRI | E121: C154300 | F121: Software ArgGIS | G121: ESRI | H121: USD | I121: N/A | J121: Insights for ArcGIS in ArcGIS Enterprise actualización | K121: Licencia | L121: Und | M121: Actualización | N121: N/A | O121: N/A | P121: N/A | Q121: C154300 | R121: Credito a 30 días | S121: 1630.125 | T121: 1 | U121: 0 | V121: USD
A122: ESRISoftware ArgGISC157002 | B122: C157002Software ArgGIS | D122: ESRI | E122: C157002 | F122: Software ArgGIS | G122: ESRI | H122: USD | I122: N/A | J122: Navigator for ArcGIS Online Term License | K122: Licencia/mes | L122: Und | M122: Licencias | N122: N/A | O122: N/A | P122: N/A | Q122: C157002 | R122: Credito a 30 días | S122: 6.0375 | T122: 1 | U122: 0 | V122: USD
A123: ESRISoftware ArgGISC157007 | B123: C157007Software ArgGIS | D123: ESRI | E123: C157007 | F123: Software ArgGIS | G123: ESRI | H123: USD | I123: N/A | J123: ArcGIS Community Analyst Web App Online Term License | K123: Licencia/mes | L123: Und | M123: Licencias | N123: N/A | O123: N/A | P123: N/A | Q123: C157007 | R123: Credito a 30 días | S123: 10.8675 | T123: 1 | U123: 0 | V123: USD
A124: ESRISoftware ArgGISC157021 | B124: C157021Software ArgGIS | D124: ESRI | E124: C157021 | F124: Software ArgGIS | G124: ESRI | H124: USD | I124: N/A | J124: ArcGIS Developer Premium Annual Subscription | K124: Licencia/año | L124: Und | M124: Licencias | N124: N/A | O124: N/A | P124: N/A | Q124: C157021 | R124: Credito a 30 días | S124: 4303.53 | T124: 1 | U124: 0 | V124: USD
A125: ESRISoftware ArgGISC157022 | B125: C157022Software ArgGIS | D125: ESRI | E125: C157022 | F125: Software ArgGIS | G125: ESRI | H125: USD | I125: N/A | J125: ArcGIS Developer Builder Annual Subscription | K125: Licencia/año | L125: Und | M125: Licencias | N125: N/A | O125: N/A | P125: N/A | Q125: C157022 | R125: Credito a 30 días | S125: 1956.15 | T125: 1 | U125: 0 | V125: USD
A126: ESRISoftware ArgGISC157023 | B126: C157023Software ArgGIS | D126: ESRI | E126: C157023 | F126: Software ArgGIS | G126: ESRI | H126: USD | I126: N/A | J126: ArcGIS Developer Professional Annual Subscription | K126: Licencia/año | L126: Und | M126: Licencias | N126: N/A | O126: N/A | P126: N/A | Q126: C157023 | R126: Credito a 30 días | S126: 2347.38 | T126: 1 | U126: 0 | V126: USD
A127: ESRISoftware ArgGISC157024 | B127: C157024Software ArgGIS | D127: ESRI | E127: C157024 | F127: Software ArgGIS | G127: ESRI | H127: USD | I127: N/A | J127: ArcGIS Developer Enterprise Annual Subscription | K127: Licencia/año | L127: Und | M127: Licencias | N127: N/A | O127: N/A | P127: N/A | Q127: C157024 | R127: Credito a 30 días | S127: 5607.63 | T127: 1 | U127: 0 | V127: USD
A128: ESRISoftware ArgGISC157558 | B128: C157558Software ArgGIS | D128: ESRI | E128: C157558 | F128: Software ArgGIS | G128: ESRI | H128: USD | I128: N/A | J128: Educational Academic Additional ArcGIS Online Service Credits (100,000 Credits) | K128: paquete de creditos | L128: Und | M128: Licencias | N128: N/A | O128: N/A | P128: N/A | Q128: C157558 | R128: Credito a 30 días | S128: 130.41 | T128: 1 | U128: 0 | V128: USD
A129: ESRISoftware ArgGISC157564 | B129: C157564Software ArgGIS | D129: ESRI | E129: C157564 | F129: Software ArgGIS | G129: ESRI | H129: USD | I129: N/A | J129: ArcGIS Online Premium Feature Data Store M-1 Annual Term License | K129: Licencia/año | L129: Und | M129: Licencias | N129: N/A | O129: N/A | P129: N/A | Q129: C157564 | R129: Credito a 30 días | S129: 14028.28 | T129: 1 | U129: 0 | V129: USD
A130: =D130&F130&E130 -> ESRISoftware ArgGISC157565 | B130: =E130&F130 -> C157565Software ArgGIS | D130: ESRI | E130: C157565 | F130: Software ArgGIS | G130: ESRI | H130: USD | I130: N/A | J130: ArcGIS Online Premium Feature Data Store M-2 Annual Term License | K130: Licencia/año | L130: Und | M130: Licencias | N130: N/A | O130: N/A | P130: N/A | Q130: =+E130 -> C157565 | R130: Credito a 30 días | S130: 28168.56 | T130: 1 | U130: 0 | V130: USD
A131: ESRISoftware ArgGISC157566 | B131: C157566Software ArgGIS | D131: ESRI | E131: C157566 | F131: Software ArgGIS | G131: ESRI | H131: USD | I131: N/A | J131: ArcGIS Online Premium Feature Data Store M-3 Annual Term License | K131: Licencia/año | L131: Und | M131: Licencias | N131: N/A | O131: N/A | P131: N/A | Q131: C157566 | R131: Credito a 30 días | S131: 56337.12 | T131: 1 | U131: 0 | V131: USD
A132: ESRISoftware ArgGISC157577 | B132: C157577Software ArgGIS | D132: ESRI | E132: C157577 | F132: Software ArgGIS | G132: ESRI | H132: USD | I132: N/A | J132: Educational Administrative Use Departmental ArcGIS Online Level 1 Additional Named User (0 Credits) | K132: Licencia/mes | L132: Und | M132: Licencias | N132: N/A | O132: N/A | P132: N/A | Q132: C157577 | R132: Credito a 30 días | S132: 65.21 | T132: 1 | U132: 0 | V132: USD
A133: ESRISoftware ArgGISC157578 | B133: C157578Software ArgGIS | D133: ESRI | E133: C157578 | F133: Software ArgGIS | G133: ESRI | H133: USD | I133: N/A | J133: Educational Administrative Use Departmental Additional ArcGIS Online Service Credits (1000 Credits) | K133: paquete de creditos | L133: Und | M133: Licencias | N133: N/A | O133: N/A | P133: N/A | Q133: C157578 | R133: Credito a 30 días | S133: 130.41 | T133: 1 | U133: 0 | V133: USD
A134: ESRISoftware ArgGISC157580 | B134: C157580Software ArgGIS | D134: ESRI | E134: C157580 | F134: Software ArgGIS | G134: ESRI | H134: USD | I134: N/A | J134: Educational Administrative Use Departmental ArcGIS Online Level 2 Additional Named User (500 Credits) | K134: Licencia/mes | L134: Und | M134: Licencias | N134: N/A | O134: N/A | P134: N/A | Q134: C157580 | R134: Credito a 30 días | S134: 326.03 | T134: 1 | U134: 0 | V134: USD
A135: ESRISoftware ArgGISC157591 | B135: C157591Software ArgGIS | D135: ESRI | E135: C157591 | F135: Software ArgGIS | G135: ESRI | H135: USD | I135: N/A | J135: ArcGIS Online Premium Feature Data Store M-1 Monthly Term License | K135: Licencias/mes | L135: Und | M135: Licencias | N135: N/A | O135: N/A | P135: N/A | Q135: C157591 | R135: Credito a 30 días | S135: 1304.1 | T135: 1 | U135: 0 | V135: USD
A136: ESRISoftware ArgGISC157592 | B136: C157592Software ArgGIS | D136: ESRI | E136: C157592 | F136: Software ArgGIS | G136: ESRI | H136: USD | I136: N/A | J136: ArcGIS Online Premium Feature Data Store M-2 Monthly Term License | K136: Licencias/mes | L136: Und | M136: Licencias | N136: N/A | O136: N/A | P136: N/A | Q136: C157592 | R136: Credito a 30 días | S136: 2608.2 | T136: 1 | U136: 0 | V136: USD
A137: ESRISoftware ArgGISC157593 | B137: C157593Software ArgGIS | D137: ESRI | E137: C157593 | F137: Software ArgGIS | G137: ESRI | H137: USD | I137: N/A | J137: ArcGIS Online Premium Feature Data Store M-3 Monthly Term License | K137: Licencias/mes | L137: Und | M137: Licencias | N137: N/A | O137: N/A | P137: N/A | Q137: C157593 | R137: Credito a 30 días | S137: 5216.4 | T137: 1 | U137: 0 | V137: USD
A138: ESRISoftware ArgGISC159044 | B138: C159044Software ArgGIS | D138: ESRI | E138: C159044 | F138: Software ArgGIS | G138: ESRI | H138: USD | I138: N/A | J138: ArcGIS Online Insights Analyst Term License | K138: Licencias/mes | L138: Und | M138: Licencias | N138: N/A | O138: N/A | P138: N/A | Q138: C159044 | R138: Credito a 30 días | S138: 54.3375 | T138: 1 | U138: 0 | V138: USD
A139: ESRISoftware ArgGISC159055 | B139: C159055Software ArgGIS | D139: ESRI | E139: C159055 | F139: Software ArgGIS | G139: ESRI | H139: USD | I139: N/A | J139: ArcGIS Data Interoperability for ArcGIS Pro Online Term License | K139: Licencias/mes | L139: Und | M139: Licencias | N139: N/A | O139: N/A | P139: N/A | Q139: C159055 | R139: Credito a 30 días | S139: 65.205 | T139: 1 | U139: 0 | V139: USD
A140: ESRISoftware ArgGISC159070 | B140: C159070Software ArgGIS | D140: ESRI | E140: C159070 | F140: Software ArgGIS | G140: ESRI | H140: USD | I140: N/A | J140: ArcGIS Image Analyst for ArcGIS Pro Online Term License | K140: Licencias/mes | L140: Und | M140: Licencias | N140: N/A | O140: N/A | P140: N/A | Q140: C159070 | R140: Credito a 30 días | S140: 65.205 | T140: 1 | U140: 0 | V140: USD
A141: ESRISoftware ArgGISC159166 | B141: C159166Software ArgGIS | D141: ESRI | E141: C159166 | F141: Software ArgGIS | G141: ESRI | H141: USD | I141: N/A | J141: ArcGIS Hub Premium ArcGIS Online Community Term License | K141: Licencias/mes | L141: Und | M141: Licencias | N141: N/A | O141: N/A | P141: N/A | Q141: C159166 | R141: Credito a 30 días | S141: 1086.75 | T141: 1 | U141: 0 | V141: USD
A142: ESRISoftware ArgGISC159168 | B142: C159168Software ArgGIS | D142: ESRI | E142: C159168 | F142: Software ArgGIS | G142: ESRI | H142: USD | I142: N/A | J142: ArcGIS Hub Premium Additional 1000 ArcGIS Online Community Creator Term License | K142: Licencias/mes | L142: Und | M142: Licencias | N142: N/A | O142: N/A | P142: N/A | Q142: C159168 | R142: Credito a 30 días | S142: 108.675 | T142: 1 | U142: 0 | V142: USD
A143: ESRISoftware ArgGISC159171 | B143: C159171Software ArgGIS | D143: ESRI | E143: C159171 | F143: Software ArgGIS | G143: ESRI | H143: USD | I143: N/A | J143: ArcGIS Hub Premium Unlimited ArcGIS Online Community Population Less than 1,000,000 Term License | K143: Licencias/mes | L143: Und | M143: Licencias | N143: N/A | O143: N/A | P143: N/A | Q143: C159171 | R143: Credito a 30 días | S143: 4347 | T143: 1 | U143: 0 | V143: USD
A144: ESRISoftware ArgGISC159173 | B144: C159173Software ArgGIS | D144: ESRI | E144: C159173 | F144: Software ArgGIS | G144: ESRI | H144: USD | I144: N/A | J144: ArcGIS Hub Premium Unlimited ArcGIS Online Community Population Greater than 1,000,000 Term License | K144: Licencias/mes | L144: Und | M144: Licencias | N144: N/A | O144: N/A | P144: N/A | Q144: C159173 | R144: Credito a 30 días | S144: 8694 | T144: 1 | U144: 0 | V144: USD
A145: ESRISoftware ArgGISC161320 | B145: C161320Software ArgGIS | D145: ESRI | E145: C161320 | F145: Software ArgGIS | G145: ESRI | H145: USD | I145: N/A | J145: ArcGIS Enterprise Workgroup Advanced Up to Two Cores actualización | K145: Licencia | L145: Und | M145: Actualización | N145: N/A | O145: N/A | P145: N/A | Q145: C161320 | R145: Credito a 30 días | S145: 8150.625 | T145: 1 | U145: 0 | V145: USD
A146: ESRISoftware ArgGISC161322 | B146: C161322Software ArgGIS | D146: ESRI | E146: C161322 | F146: Software ArgGIS | G146: ESRI | H146: USD | I146: N/A | J146: ArcGIS Enterprise Workgroup Standard Up to Two Cores actualización | K146: Licencia | L146: Und | M146: Actualización | N146: N/A | O146: N/A | P146: N/A | Q146: C161322 | R146: Credito a 30 días | S146: 4075.325 | T146: 1 | U146: 0 | V146: USD
A147: ESRISoftware ArgGISC161324 | B147: C161324Software ArgGIS | D147: ESRI | E147: C161324 | F147: Software ArgGIS | G147: ESRI | H147: USD | I147: N/A | J147: ArcGIS GIS Server Workgroup Advanced Up to Two Cores actualización | K147: Licencia | L147: Und | M147: Actualización | N147: N/A | O147: N/A | P147: N/A | Q147: C161324 | R147: Credito a 30 días | S147: 8150.625 | T147: 1 | U147: 0 | V147: USD
A148: ESRISoftware ArgGISC161325 | B148: C161325Software ArgGIS | D148: ESRI | E148: C161325 | F148: Software ArgGIS | G148: ESRI | H148: USD | I148: N/A | J148: ArcGIS GIS Server Workgroup Standard Up to Two Cores actualización | K148: Licencia | L148: Und | M148: Actualización | N148: N/A | O148: N/A | P148: N/A | Q148: C161325 | R148: Credito a 30 días | S148: 4075.325 | T148: 1 | U148: 0 | V148: USD
A149: ESRISoftware ArgGISC161326 | B149: C161326Software ArgGIS | D149: ESRI | E149: C161326 | F149: Software ArgGIS | G149: ESRI | H149: USD | I149: N/A | J149: ArcGIS Enterprise Advanced Up to Four Cores actualización | K149: Licencia | L149: Und | M149: Actualización | N149: N/A | O149: N/A | P149: N/A | Q149: C161326 | R149: Credito a 30 días | S149: 32602.5 | T149: 1 | U149: 0 | V149: USD
A150: ESRISoftware ArgGISC161328 | B150: C161328Software ArgGIS | D150: ESRI | E150: C161328 | F150: Software ArgGIS | G150: ESRI | H150: USD | I150: N/A | J150: ArcGIS Enterprise Standard Up to Four Cores actualización | K150: Licencia | L150: Und | M150: Actualización | N150: N/A | O150: N/A | P150: N/A | Q150: C161328 | R150: Credito a 30 días | S150: 16301.25 | T150: 1 | U150: 0 | V150: USD
A151: ESRISoftware ArgGISC161334 | B151: C161334Software ArgGIS | D151: ESRI | E151: C161334 | F151: Software ArgGIS | G151: ESRI | H151: USD | I151: N/A | J151: ArcGIS GeoAnalytics Server Up to Four Cores actualización | K151: Licencia | L151: Und | M151: Actualización | N151: N/A | O151: N/A | P151: N/A | Q151: C161334 | R151: Credito a 30 días | S151: 16301.25 | T151: 1 | U151: 0 | V151: USD
A152: ESRISoftware ArgGISC161336 | B152: C161336Software ArgGIS | D152: ESRI | E152: C161336 | F152: Software ArgGIS | G152: ESRI | H152: USD | I152: N/A | J152: ArcGIS GeoAnalytics Server Workgroup Up to Four Cores actualización | K152: Licencia | L152: Und | M152: Actualización | N152: N/A | O152: N/A | P152: N/A | Q152: C161336 | R152: Credito a 30 días | S152: 8150.625 | T152: 1 | U152: 0 | V152: USD
A153: ESRISoftware ArgGISC161337 | B153: C161337Software ArgGIS | D153: ESRI | E153: C161337 | F153: Software ArgGIS | G153: ESRI | H153: USD | I153: N/A | J153: ArcGIS GeoEvent Server Up to Four Cores actualización | K153: Licencia | L153: Und | M153: Actualización | N153: N/A | O153: N/A | P153: N/A | Q153: C161337 | R153: Credito a 30 días | S153: 16301.25 | T153: 1 | U153: 0 | V153: USD
A154: ESRISoftware ArgGISC161338 | B154: C161338Software ArgGIS | D154: ESRI | E154: C161338 | F154: Software ArgGIS | G154: ESRI | H154: USD | I154: N/A | J154: ArcGIS GeoEvent Server Workgroup Up to Four Cores actualización | K154: Licencia | L154: Und | M154: Actualización | N154: N/A | O154: N/A | P154: N/A | Q154: C161338 | R154: Credito a 30 días | S154: 8150.625 | T154: 1 | U154: 0 | V154: USD
A155: ESRISoftware ArgGISC161339 | B155: C161339Software ArgGIS | D155: ESRI | E155: C161339 | F155: Software ArgGIS | G155: ESRI | H155: USD | I155: N/A | J155: ArcGIS Image Server Up to Four Cores actualización | K155: Licencia | L155: Und | M155: Actualización | N155: N/A | O155: N/A | P155: N/A | Q155: C161339 | R155: Credito a 30 días | S155: 16301.25 | T155: 1 | U155: 0 | V155: USD
A156: ESRISoftware ArgGISC161341 | B156: C161341Software ArgGIS | D156: ESRI | E156: C161341 | F156: Software ArgGIS | G156: ESRI | H156: USD | I156: N/A | J156: ArcGIS Image Server Workgroup Up to Four Cores actualización | K156: Licencia | L156: Und | M156: Actualización | N156: N/A | O156: N/A | P156: N/A | Q156: C161341 | R156: Credito a 30 días | S156: 8150.625 | T156: 1 | U156: 0 | V156: USD
A157: ESRISoftware ArgGISC161343 | B157: C161343Software ArgGIS | D157: ESRI | E157: C161343 | F157: Software ArgGIS | G157: ESRI | H157: USD | I157: N/A | J157: ArcGIS GIS Server Advanced Up to Four Cores actualización | K157: Licencia | L157: Und | M157: Actualización | N157: N/A | O157: N/A | P157: N/A | Q157: C161343 | R157: Credito a 30 días | S157: 32602.5 | T157: 1 | U157: 0 | V157: USD
A158: ESRISoftware ArgGISC161344 | B158: C161344Software ArgGIS | D158: ESRI | E158: C161344 | F158: Software ArgGIS | G158: ESRI | H158: USD | I158: N/A | J158: ArcGIS for Maritime for ArcGIS GIS Server Advanced (Windows) Up to Four Cores actualización | K158: Licencia | L158: Und | M158: Actualización | N158: N/A | O158: N/A | P158: N/A | Q158: C161344 | R158: Credito a 30 días | S158: 8150.625 | T158: 1 | U158: 0 | V158: USD
A159: ESRISoftware ArgGISC161345 | B159: C161345Software ArgGIS | D159: ESRI | E159: C161345 | F159: Software ArgGIS | G159: ESRI | H159: USD | I159: N/A | J159: ArcGIS for Maritime for ArcGIS GIS Server Workgroup Advanced Up to Four Cores actualización | K159: Licencia | L159: Und | M159: Actualización | N159: N/A | O159: N/A | P159: N/A | Q159: C161345 | R159: Credito a 30 días | S159: 4075.325 | T159: 1 | U159: 0 | V159: USD
A160: ESRISoftware ArgGISC161346 | B160: C161346Software ArgGIS | D160: ESRI | E160: C161346 | F160: Software ArgGIS | G160: ESRI | H160: USD | I160: N/A | J160: ArcGIS for Maritime for ArcGIS GIS Server Standard (Windows) Up to Four Cores actualización | K160: Licencia | L160: Und | M160: Actualización | N160: N/A | O160: N/A | P160: N/A | Q160: C161346 | R160: Credito a 30 días | S160: 8150.625 | T160: 1 | U160: 0 | V160: USD
A161: ESRISoftware ArgGISC161347 | B161: C161347Software ArgGIS | D161: ESRI | E161: C161347 | F161: Software ArgGIS | G161: ESRI | H161: USD | I161: N/A | J161: ArcGIS for Maritime for ArcGIS GIS Server Workgroup Standard Up to Four Cores actualización | K161: Licencia | L161: Und | M161: Actualización | N161: N/A | O161: N/A | P161: N/A | Q161: C161347 | R161: Credito a 30 días | S161: 4075.325 | T161: 1 | U161: 0 | V161: USD
A162: ESRISoftware ArgGISC161348 | B162: C161348Software ArgGIS | D162: ESRI | E162: C161348 | F162: Software ArgGIS | G162: ESRI | H162: USD | I162: N/A | J162: ArcGIS GIS Server Basic Up to Four Cores actualización | K162: Licencia | L162: Und | M162: Actualización | N162: N/A | O162: N/A | P162: N/A | Q162: C161348 | R162: Credito a 30 días | S162: 9780.75 | T162: 1 | U162: 0 | V162: USD
A163: ESRISoftware ArgGISC161349 | B163: C161349Software ArgGIS | D163: ESRI | E163: C161349 | F163: Software ArgGIS | G163: ESRI | H163: USD | I163: N/A | J163: ArcGIS GIS Server Workgroup Basic Maximum Four Cores actualización | K163: Licencia | L163: Und | M163: Actualización | N163: N/A | O163: N/A | P163: N/A | Q163: C161349 | R163: Credito a 30 días | S163: 4075.325 | T163: 1 | U163: 0 | V163: USD
A164: ESRISoftware ArgGISC161350 | B164: C161350Software ArgGIS | D164: ESRI | E164: C161350 | F164: Software ArgGIS | G164: ESRI | H164: USD | I164: N/A | J164: ArcGIS Data Reviewer for ArcGIS GIS Server Standard or Advanced (Windows Only) Up to Four Cores Actualización | K164: Licencia | L164: Und | M164: Actualización | N164: N/A | O164: N/A | P164: N/A | Q164: C161350 | R164: Credito a 30 días | S164: 8150.625 | T164: 1 | U164: 0 | V164: USD
A165: ESRISoftware ArgGISC161351 | B165: C161351Software ArgGIS | D165: ESRI | E165: C161351 | F165: Software ArgGIS | G165: ESRI | H165: USD | I165: N/A | J165: ArcGIS Data Reviewer for ArcGIS GIS Server Workgroup Standard or Advanced Maximum Four Cores Actualización | K165: Licencia | L165: Und | M165: Actualización | N165: N/A | O165: N/A | P165: N/A | Q165: C161351 | R165: Credito a 30 días | S165: 4075.325 | T165: 1 | U165: 0 | V165: USD
A166: ESRISoftware ArgGISC161354 | B166: C161354Software ArgGIS | D166: ESRI | E166: C161354 | F166: Software ArgGIS | G166: ESRI | H166: USD | I166: N/A | J166: Esri Defense Mapping for ArcGIS GIS Server Advanced (Windows) Up to Four Cores actualización | K166: Licencia | L166: Und | M166: Actualización | N166: N/A | O166: N/A | P166: N/A | Q166: C161354 | R166: Credito a 30 días | S166: 8150.625 | T166: 1 | U166: 0 | V166: USD
A167: ESRISoftware ArgGISC161355 | B167: C161355Software ArgGIS | D167: ESRI | E167: C161355 | F167: Software ArgGIS | G167: ESRI | H167: USD | I167: N/A | J167: Esri Defense Mapping for ArcGIS GIS Server Workgroup Advanced Up to Four Cores actualización | K167: Licencia | L167: Und | M167: Actualización | N167: N/A | O167: N/A | P167: N/A | Q167: C161355 | R167: Credito a 30 días | S167: 4075.325 | T167: 1 | U167: 0 | V167: USD
A168: ESRISoftware ArgGISC161356 | B168: C161356Software ArgGIS | D168: ESRI | E168: C161356 | F168: Software ArgGIS | G168: ESRI | H168: USD | I168: N/A | J168: Esri Production Mapping for ArcGIS GIS Server Advanced (Windows) Up to Four Cores actualización | K168: Licencia | L168: Und | M168: Actualización | N168: N/A | O168: N/A | P168: N/A | Q168: C161356 | R168: Credito a 30 días | S168: 8150.625 | T168: 1 | U168: 0 | V168: USD
A169: ESRISoftware ArgGISC161357 | B169: C161357Software ArgGIS | D169: ESRI | E169: C161357 | F169: Software ArgGIS | G169: ESRI | H169: USD | I169: N/A | J169: Esri Production Mapping for ArcGIS GIS Server Workgroup Advanced Up to Four Cores actualización | K169: Licencia | L169: Und | M169: Actualización | N169: N/A | O169: N/A | P169: N/A | Q169: C161357 | R169: Credito a 30 días | S169: 4075.325 | T169: 1 | U169: 0 | V169: USD
A170: ESRISoftware ArgGISC161358 | B170: C161358Software ArgGIS | D170: ESRI | E170: C161358 | F170: Software ArgGIS | G170: ESRI | H170: USD | I170: N/A | J170: Esri Production Mapping for ArcGIS GIS Server Standard (Windows) Up to Four Cores actualización | K170: Licencia | L170: Und | M170: Actualización | N170: N/A | O170: N/A | P170: N/A | Q170: C161358 | R170: Credito a 30 días | S170: 8150.625 | T170: 1 | U170: 0 | V170: USD
A171: ESRISoftware ArgGISC161359 | B171: C161359Software ArgGIS | D171: ESRI | E171: C161359 | F171: Software ArgGIS | G171: ESRI | H171: USD | I171: N/A | J171: Esri Production Mapping for ArcGIS GIS Server Workgroup Standard (Wind.) Up to Four Cores actualizaciónanc | K171: Licencia | L171: Und | M171: Actualización | N171: N/A | O171: N/A | P171: N/A | Q171: C161359 | R171: Credito a 30 días | S171: 4075.325 | T171: 1 | U171: 0 | V171: USD
A172: ESRISoftware ArgGISC161360 | B172: C161360Software ArgGIS | D172: ESRI | E172: C161360 | F172: Software ArgGIS | G172: ESRI | H172: USD | I172: N/A | J172: ArcGIS Roads and Highways for ArcGIS GIS Server Workgroup Standard or Advanced Maximum Four Cores Actualización | K172: Licencia | L172: Und | M172: Actualización | N172: N/A | O172: N/A | P172: N/A | Q172: C161360 | R172: Credito a 30 días | S172: 4075.325 | T172: 1 | U172: 0 | V172: USD
A173: ESRISoftware ArgGISC161362 | B173: C161362Software ArgGIS | D173: ESRI | E173: C161362 | F173: Software ArgGIS | G173: ESRI | H173: USD | I173: N/A | J173: ArcGIS Data Interoperability for ArcGIS GIS Server Workgroup Advanced Maximum Four Cores actualización | K173: Licencia | L173: Und | M173: Actualización | N173: N/A | O173: N/A | P173: N/A | Q173: C161362 | R173: Credito a 30 días | S173: 4075.325 | T173: 1 | U173: 0 | V173: USD
A174: ESRISoftware ArgGISC161363 | B174: C161363Software ArgGIS | D174: ESRI | E174: C161363 | F174: Software ArgGIS | G174: ESRI | H174: USD | I174: N/A | J174: ArcGIS Data Interoperability for ArcGIS GIS Server Workgroup Standard Maximum Four Cores actualización | K174: Licencia | L174: Und | M174: Actualización | N174: N/A | O174: N/A | P174: N/A | Q174: C161363 | R174: Credito a 30 días | S174: 4075.325 | T174: 1 | U174: 0 | V174: USD
A175: ESRISoftware ArgGISC161364 | B175: C161364Software ArgGIS | D175: ESRI | E175: C161364 | F175: Software ArgGIS | G175: ESRI | H175: USD | I175: N/A | J175: ArcGIS Data Interoperability for ArcGIS GIS Server Advanced Up to Four Cores actualización | K175: Licencia | L175: Und | M175: Actualización | N175: N/A | O175: N/A | P175: N/A | Q175: C161364 | R175: Credito a 30 días | S175: 8150.625 | T175: 1 | U175: 0 | V175: USD
A176: ESRISoftware ArgGISC161365 | B176: C161365Software ArgGIS | D176: ESRI | E176: C161365 | F176: Software ArgGIS | G176: ESRI | H176: USD | I176: N/A | J176: ArcGIS Data Interoperability for ArcGIS GIS Server Standard Up to Four Cores actualización | K176: Licencia | L176: Und | M176: Actualización | N176: N/A | O176: N/A | P176: N/A | Q176: C161365 | R176: Credito a 30 días | S176: 8150.625 | T176: 1 | U176: 0 | V176: USD
A177: ESRISoftware ArgGISC161366 | B177: C161366Software ArgGIS | D177: ESRI | E177: C161366 | F177: Software ArgGIS | G177: ESRI | H177: USD | I177: N/A | J177: ArcGIS Network Analyst for ArcGIS GIS Server Standard Up to Four Cores actualización | K177: Licencia | L177: Und | M177: Actualización | N177: N/A | O177: N/A | P177: N/A | Q177: C161366 | R177: Credito a 30 días | S177: 8150.625 | T177: 1 | U177: 0 | V177: USD
A178: ESRISoftware ArgGISC161367 | B178: C161367Software ArgGIS | D178: ESRI | E178: C161367 | F178: Software ArgGIS | G178: ESRI | H178: USD | I178: N/A | J178: ArcGIS Network Analyst for ArcGIS GIS Server Workgroup Standard Maximum Four Cores actualización | K178: Licencia | L178: Und | M178: Actualización | N178: N/A | O178: N/A | P178: N/A | Q178: C161367 | R178: Credito a 30 días | S178: 4075.325 | T178: 1 | U178: 0 | V178: USD
A179: ESRISoftware ArgGISC161369 | B179: C161369Software ArgGIS | D179: ESRI | E179: C161369 | F179: Software ArgGIS | G179: ESRI | H179: USD | I179: N/A | J179: ArcGIS GIS Server Standard Up to Four Cores actualización | K179: Licencia | L179: Und | M179: Actualización | N179: N/A | O179: N/A | P179: N/A | Q179: C161369 | R179: Credito a 30 días | S179: 16301.25 | T179: 1 | U179: 0 | V179: USD
A180: ESRISoftware ArgGISC161370 | B180: C161370Software ArgGIS | D180: ESRI | E180: C161370 | F180: Software ArgGIS | G180: ESRI | H180: USD | I180: N/A | J180: ArcGIS Workflow Manager (Classic) for ArcGIS GIS Server Standard or Advanced (Windows Only) Up to Four Cores Actualización | K180: Licencia | L180: Und | M180: Actualización | N180: N/A | O180: N/A | P180: N/A | Q180: C161370 | R180: Credito a 30 días | S180: 8150.625 | T180: 1 | U180: 0 | V180: USD
A181: ESRISoftware ArgGISC161372 | B181: C161372Software ArgGIS | D181: ESRI | E181: C161372 | F181: Software ArgGIS | G181: ESRI | H181: USD | I181: N/A | J181: ArcGIS Workflow Manager (Classic) for ArcGIS GIS Server Workgroup Standard or Advanced Maximum Four Cores Actualización | K181: Licencia | L181: Und | M181: Actualización | N181: N/A | O181: N/A | P181: N/A | Q181: C161372 | R181: Credito a 30 días | S181: 4075.325 | T181: 1 | U181: 0 | V181: USD
A182: ESRISoftware ArgGISC161380 | B182: C161380Software ArgGIS | D182: ESRI | E182: C161380 | F182: Software ArgGIS | G182: ESRI | H182: USD | I182: N/A | J182: ArcGIS Roads and Highways for ArcGIS GIS Server Standard or Advanced (Windows Only) Up to Four Cores Actualización | K182: Licencia | L182: Und | M182: Actualización | N182: N/A | O182: N/A | P182: N/A | Q182: C161380 | R182: Credito a 30 días | S182: 8150.625 | T182: 1 | U182: 0 | V182: USD
A183: ESRISoftware ArgGISC161387 | B183: C161387Software ArgGIS | D183: ESRI | E183: C161387 | F183: Software ArgGIS | G183: ESRI | H183: USD | I183: N/A | J183: ArcGIS GeoEvent Server Additional Core (up to 32 per server) actualización | K183: Licencia | L183: Und | M183: Actualización | N183: N/A | O183: N/A | P183: N/A | Q183: C161387 | R183: Credito a 30 días | S183: 4075.325 | T183: 1 | U183: 0 | V183: USD
A184: ESRISoftware ArgGISC161388 | B184: C161388Software ArgGIS | D184: ESRI | E184: C161388 | F184: Software ArgGIS | G184: ESRI | H184: USD | I184: N/A | J184: ArcGIS GIS Server Advanced Additional Cores actualización | K184: Licencia | L184: Und | M184: Actualización | N184: N/A | O184: N/A | P184: N/A | Q184: C161388 | R184: Credito a 30 días | S184: 8150.625 | T184: 1 | U184: 0 | V184: USD
A185: ESRISoftware ArgGISC161389 | B185: C161389Software ArgGIS | D185: ESRI | E185: C161389 | F185: Software ArgGIS | G185: ESRI | H185: USD | I185: N/A | J185: ArcGIS GIS Server Standard Additional Cores actualización | K185: Licencia | L185: Und | M185: Actualización | N185: N/A | O185: N/A | P185: N/A | Q185: C161389 | R185: Credito a 30 días | S185: 4075.325 | T185: 1 | U185: 0 | V185: USD
A186: ESRISoftware ArgGISC161392 | B186: C161392Software ArgGIS | D186: ESRI | E186: C161392 | F186: Software ArgGIS | G186: ESRI | H186: USD | I186: N/A | J186: ArcGIS GeoAnalytics Server Additional Core (up to 32 per server) actualización | K186: Licencia | L186: Und | M186: Actualización | N186: N/A | O186: N/A | P186: N/A | Q186: C161392 | R186: Credito a 30 días | S186: 4075.325 | T186: 1 | U186: 0 | V186: USD
A187: ESRISoftware ArgGISC161393 | B187: C161393Software ArgGIS | D187: ESRI | E187: C161393 | F187: Software ArgGIS | G187: ESRI | H187: USD | I187: N/A | J187: ArcGIS Image Server Additional Core (up to 32 per server) actualización | K187: Licencia | L187: Und | M187: Actualización | N187: N/A | O187: N/A | P187: N/A | Q187: C161393 | R187: Credito a 30 días | S187: 4075.325 | T187: 1 | U187: 0 | V187: USD
A188: ESRISoftware ArgGISC161397 | B188: C161397Software ArgGIS | D188: ESRI | E188: C161397 | F188: Software ArgGIS | G188: ESRI | H188: USD | I188: N/A | J188: ArcGIS for Maritime for ArcGIS GIS Server Advanced (Windows) Additional Core actualización | K188: Licencia | L188: Und | M188: Actualización | N188: N/A | O188: N/A | P188: N/A | Q188: C161397 | R188: Credito a 30 días | S188: 2037.675 | T188: 1 | U188: 0 | V188: USD
A189: ESRISoftware ArgGISC161398 | B189: C161398Software ArgGIS | D189: ESRI | E189: C161398 | F189: Software ArgGIS | G189: ESRI | H189: USD | I189: N/A | J189: ArcGIS for Maritime for ArcGIS GIS Server Standard (Windows) Additional Core actualización | K189: Licencia | L189: Und | M189: Actualización | N189: N/A | O189: N/A | P189: N/A | Q189: C161398 | R189: Credito a 30 días | S189: 2037.675 | T189: 1 | U189: 0 | V189: USD
A190: ESRISoftware ArgGISC161399 | B190: C161399Software ArgGIS | D190: ESRI | E190: C161399 | F190: Software ArgGIS | G190: ESRI | H190: USD | I190: N/A | J190: ArcGIS GIS Server Basic Additional Cores actualización | K190: Licencia | L190: Und | M190: Actualización | N190: N/A | O190: N/A | P190: N/A | Q190: C161399 | R190: Credito a 30 días | S190: 2445.2 | T190: 1 | U190: 0 | V190: USD
A191: ESRISoftware ArgGISC161400 | B191: C161400Software ArgGIS | D191: ESRI | E191: C161400 | F191: Software ArgGIS | G191: ESRI | H191: USD | I191: N/A | J191: ArcGIS Data Reviewer for ArcGIS GIS Server Standard or Advanced (Windows Only) Additional Core Actualización | K191: Licencia | L191: Und | M191: Actualización | N191: N/A | O191: N/A | P191: N/A | Q191: C161400 | R191: Credito a 30 días | S191: 2037.675 | T191: 1 | U191: 0 | V191: USD
A192: ESRISoftware ArgGISC161402 | B192: C161402Software ArgGIS | D192: ESRI | E192: C161402 | F192: Software ArgGIS | G192: ESRI | H192: USD | I192: N/A | J192: Esri Defense Mapping for ArcGIS GIS Server Advanced (Windows) Additional Core actualización | K192: Licencia | L192: Und | M192: Actualización | N192: N/A | O192: N/A | P192: N/A | Q192: C161402 | R192: Credito a 30 días | S192: 2037.675 | T192: 1 | U192: 0 | V192: USD
A193: ESRISoftware ArgGISC161403 | B193: C161403Software ArgGIS | D193: ESRI | E193: C161403 | F193: Software ArgGIS | G193: ESRI | H193: USD | I193: N/A | J193: Esri Production Mapping for ArcGIS GIS Server Advanced (Windows) Additional Core actualización | K193: Licencia | L193: Und | M193: Actualización | N193: N/A | O193: N/A | P193: N/A | Q193: C161403 | R193: Credito a 30 días | S193: 2037.675 | T193: 1 | U193: 0 | V193: USD
A194: =D194&F194&E194 -> ESRISoftware ArgGISC161404 | B194: =E194&F194 -> C161404Software ArgGIS | D194: ESRI | E194: C161404 | F194: Software ArgGIS | G194: ESRI | H194: USD | I194: N/A | J194: Esri Production Mapping for ArcGIS GIS Server Standard (Windows) Additional Core actualización | K194: Licencia | L194: Und | M194: Actualización | N194: N/A | O194: N/A | P194: N/A | Q194: =+E194 -> C161404 | R194: Credito a 30 días | S194: 2037.675 | T194: 1 | U194: 0 | V194: USD
A195: ESRISoftware ArgGISC161405 | B195: C161405Software ArgGIS | D195: ESRI | E195: C161405 | F195: Software ArgGIS | G195: ESRI | H195: USD | I195: N/A | J195: ArcGIS Data Interoperability for ArcGIS GIS Server Advanced Additional Core actualización | K195: Licencia | L195: Und | M195: Actualización | N195: N/A | O195: N/A | P195: N/A | Q195: C161405 | R195: Credito a 30 días | S195: 2037.675 | T195: 1 | U195: 0 | V195: USD
A196: ESRISoftware ArgGISC161406 | B196: C161406Software ArgGIS | D196: ESRI | E196: C161406 | F196: Software ArgGIS | G196: ESRI | H196: USD | I196: N/A | J196: ArcGIS Data Interoperability for ArcGIS GIS Server Standard Additional Core actualización | K196: Licencia | L196: Und | M196: Actualización | N196: N/A | O196: N/A | P196: N/A | Q196: C161406 | R196: Credito a 30 días | S196: 2037.675 | T196: 1 | U196: 0 | V196: USD
A197: ESRISoftware ArgGISC161407 | B197: C161407Software ArgGIS | D197: ESRI | E197: C161407 | F197: Software ArgGIS | G197: ESRI | H197: USD | I197: N/A | J197: ArcGIS Network Analyst for ArcGIS GIS Server Standard Additional Core actualización | K197: Licencia | L197: Und | M197: Actualización | N197: N/A | O197: N/A | P197: N/A | Q197: C161407 | R197: Credito a 30 días | S197: 2037.675 | T197: 1 | U197: 0 | V197: USD
A198: ESRISoftware ArgGISC161409 | B198: C161409Software ArgGIS | D198: ESRI | E198: C161409 | F198: Software ArgGIS | G198: ESRI | H198: USD | I198: N/A | J198: ArcGIS Workflow Manager (Classic) for ArcGIS GIS Server Standard or Advanced (Windows Only) Additional Core Actualización | K198: Licencia | L198: Und | M198: Actualización | N198: N/A | O198: N/A | P198: N/A | Q198: C161409 | R198: Credito a 30 días | S198: 2037.675 | T198: 1 | U198: 0 | V198: USD
A199: ESRISoftware ArgGISC161414 | B199: C161414Software ArgGIS | D199: ESRI | E199: C161414 | F199: Software ArgGIS | G199: ESRI | H199: USD | I199: N/A | J199: ArcGIS Roads and Highways for ArcGIS GIS Server Standard or Advanced (Windows Only) Additional Core Actualización | K199: Licencia | L199: Und | M199: Actualización | N199: N/A | O199: N/A | P199: N/A | Q199: C161414 | R199: Credito a 30 días | S199: 2037.675 | T199: 1 | U199: 0 | V199: USD
A200: ESRISoftware ArgGISC161419 | B200: C161419Software ArgGIS | D200: ESRI | E200: C161419 | F200: Software ArgGIS | G200: ESRI | H200: USD | I200: N/A | J200: ArcGIS GeoAnalytics Server Additional Core (more than 32 per Server) actualización | K200: Licencia | L200: Und | M200: Actualización | N200: N/A | O200: N/A | P200: N/A | Q200: C161419 | R200: Credito a 30 días | S200: 2037.675 | T200: 1 | U200: 0 | V200: USD
... 547 more rows

Sheet ProXCat (hidden)
A3: Etiquetas de fila
A4: 1
A5: Controles Empresariales S.A.S.
A6: The Best Experience in Technology S.A
A7: UT Soft-IG
A8: UT Soluciones Microsoft 2017
A9: Total 1
A10: 2
A11: Controles Empresariales S.A.S.
A12: Dell Colombia INC
A13: The Best Experience in Technology S.A
A14: UT Soft-IG
A15: UT Soluciones Microsoft 2017
A16: Total 2
A17: 3
A18: Controles Empresariales S.A.S.
A19: UT Soft-IG
A20: UT Soluciones Microsoft 2017
A21: Total 3
A22: 4
A23: Controles Empresariales S.A.S.
A24: UT Soft-IG
A25: Total 4
A26: 5
A27: Controles Empresariales S.A.S.
A28: UT Soft-IG
A29: Vision Software S.A.S.
A30: Total 5
A31: 6
A32: Controles Empresariales S.A.S.
A33: The Best Experience in Technology S.A
A34: UT Soft-IG
A35: UT Soluciones Microsoft 2017
A36: Total 6
A37: 7
A38: Controles Empresariales S.A.S.
A39: The Best Experience in Technology S.A
A40: UT Soft-IG
A41: UT Soluciones Microsoft 2017
A42: Vision Software S.A.S.
A43: Total 7
A44: Total general

Sheet Cuadro Totales (hidden)
A1: Precio Unitario | B1: Precio máximo permitido | C1: Subtotal | D1: IVA | E1: Precio Total
D3: Valor Total | E3: =SUM(E2) -> 0
A8: Precio Unitario | B8: Precio máximo permitido | C8: Descuento adicional | D8: Precio con Descuento | E8: Subtotal | F8: IVA | G8: Precio Total
F10: Valor Total | G10: =SUM(G9) -> 0
A13: Servicios Azure
A14: Subtotal | B14: IVA | C14: Precio Total

Sheet Listas (hidden)
A1: Categoria | B1: Zona | C1: Marca | D1: ProductoInicial | E1: Producto | F1: Proveedores
A2: Software ArgGIS | D2: C52384 | F2: ESRI
D3: C52385
D4: C52386
D5: C52387
D6: C86497
D7: C86500
D8: C87192
D9: C87193
D10: C87194
D11: C87195
D12: C87198
D13: C87199
D14: C87232
D15: C87233
D16: C87236
D17: C87237
D18: C92774
D19: C92775
D20: C93094
D21: C93095
D22: C93303
D23: C93304
D24: C93306
D25: C93307
D26: C93984
D27: C96880
D28: C97442
D29: C97443
D30: C97444
D31: C97445
D32: C98134
D33: C98135
D34: C98696
D35: C98697
D36: C100571
D37: C100572
D38: C100573
D39: C100574
D40: C118242
D41: C118243
D42: C121804
D43: C121805
D44: C121810
D45: C121871
D46: C121872
D47: C121873
D48: C121874
D49: C121875
D50: C122181
D51: C122183
D52: C122184
D53: C122185
D54: C122187
D55: C122188
D56: C122189
D57: C122190
D58: C122191
D59: C122192
D60: C122195
D61: C122196
D62: C122197
D63: C122270
D64: C122275
D65: C122276
D66: C122277
D67: C122278
D68: C122279
D69: C122280
D70: C122281
D71: C122282
D72: C122283
D73: C122284
D74: C122285
D75: C122286
D76: C122287
D77: C122288
D78: C122290
D79: C122291
D80: C122292
D81: C122293
D82: C122294
D83: C122295
D84: C122296
D85: C122297
D86: C122299
D87: C122300
D88: C154880
D89: C123515
D90: C127623
D91: C127624
D92: C127625
D93: C127626
D94: C127627
D95: C127657
D96: C128916
D97: C130909
D98: C130922
D99: C130923
D100: C130942
D101: C130943
D102: C133018
D103: C133019
D104: C133033
D105: C133034
D106: C133196
D107: C151823
D108: C153147
D109: C153148
D110: C153373
D111: C153416
D112: C153417
D113: C153418
D114: C153543
D115: C153544
D116: C153545
D117: C153546
D118: C153547
D119: C153548
D120: C154097
D121: C154300
D122: C157002
D123: C157007
D124: C157021
D125: C157022
D126: C157023
D127: C157024
D128: C157558
D129: C157564
D130: C157565
D131: C157566
D132: C157577
D133: C157578
D134: C157580
D135: C157591
D136: C157592
D137: C157593
D138: C159044
D139: C159055
D140: C159070
D141: C159166
D142: C159168
D143: C159171
D144: C159173
D145: C161320
D146: C161322
D147: C161324
D148: C161325
D149: C161326
D150: C161328
D151: C161334
D152: C161336
D153: C161337
D154: C161338
D155: C161339
D156: C161341
D157: C161343
D158: C161344
D159: C161345
D160: C161346
D161: C161347
D162: C161348
D163: C161349
D164: C161350
D165: C161351
D166: C161354
D167: C161355
D168: C161356
D169: C161357
D170: C161358
D171: C161359
D172: C161360
D173: C161362
D174: C161363
D175: C161364
D176: C161365
D177: C161366
D178: C161367
D179: C161369
D180: C161370
D181: C161372
D182: C161380
D183: C161387
D184: C161388
D185: C161389
D186: C161392
D187: C161393
D188: C161397
D189: C161398
D190: C161399
D191: C161400
D192: C161402
D193: C161403
D194: C161404
D195: C161405
D196: C161406
D197: C161407
D198: C161409
D199: C161414
D200: C161419
... 546 more rows

Sheet minimo (hidden)
C1: categoria | D1: (Todas)
C3: Etiquetas de fila | D3: Suma de total
C4: ESRI | D4: 16510
C5: Total general | D5: 16510

Sheet temp (hidden)
A1: LLAVE | B1: TEMP1 | C1: TEMP2 | D1: PROVEEDOR | E1: Código matriz Colombia Compra Eficiente | F1: categoria | G1: PROVEEDOR2 | H1: Moneda | I1: Parametrización de los Servicios | J1: Nombre Producto | K1: Unidad de Medida | L1: Unidad TVEC | M1: Tipo | N1: Zona | O1: Asistencia | P1: Perfil | Q1: Número de parte | R1: Forma de Pago | S1: Precio | T1: Activo | U1: IVA | V1: cant | W1: valor base | X1: valor con gravamenes | Y1: total
A2: ESRISoftware ArgGISC86497 | B2: C86497Software ArgGIS | D2: ESRI | E2: C86497 | F2: Software ArgGIS | G2: ESRI | H2: USD | I2: N/A | J2: ArcGIS for Desktop Standard Concurrent Primary actualización | K2: Licencia | L2: Und | M2: Actualización | N2: N/A | O2: N/A | P2: N/A | Q2: C86497 | R2: Credito a 30 días | S2: 4890.375 | T2: 1 | U2: 0 | V2: =SUMIF(ResumenCotizacion!$C:$C,E2,ResumenCotizacion!$P:$P) -> 1 | W2: =S2 -> 4890.375 | X2: =ROUND(W2/(1-VLOOKUP("Total porcentaje:",ResumenCotizacion!$F:$H,3,0)),0) -> 5073 | Y2: =V2*X2 -> 5073
A3: ESRISoftware ArgGISC153147 | B3: C153147Software ArgGIS | D3: ESRI | E3: C153147 | F3: Software ArgGIS | G3: ESRI | H3: USD | I3: N/A | J3: ArcGIS Online (Viewer) User Type Term License | K3: Licencia/mes | L3: Und | M3: Licencias | N3: N/A | O3: N/A | P3: N/A | Q3: C153147 | R3: Credito a 30 días | S3: 10.8675 | T3: 1 | U3: 0 | V3: =SUMIF(ResumenCotizacion!$C:$C,E3,ResumenCotizacion!$P:$P) -> 36 | W3: =S3 -> 10.8675 | X3: =ROUND(W3/(1-VLOOKUP("Total porcentaje:",ResumenCotizacion!$F:$H,3,0)),0) -> 11 | Y3: =V3*X3 -> 396
A4: ESRISoftware ArgGISC153148 | B4: C153148Software ArgGIS | D4: ESRI | E4: C153148 | F4: Software ArgGIS | G4: ESRI | H4: USD | I4: N/A | J4: ArcGIS Online (Creator) User Type Term License | K4: Licencia/mes | L4: Und | M4: Licencias | N4: N/A | O4: N/A | P4: N/A | Q4: C153148 | R4: Credito a 30 días | S4: 54.3375 | T4: 1 | U4: 0 | V4: =SUMIF(ResumenCotizacion!$C:$C,E4,ResumenCotizacion!$P:$P) -> 12 | W4: 54.3375 | X4: =ROUND(W4/(1-VLOOKUP("Total porcentaje:",ResumenCotizacion!$F:$H,3,0)),0) -> 56 | Y4: 672
A5: ESRISoftware ArgGISC153418 | B5: C153418Software ArgGIS | D5: ESRI | E5: C153418 | F5: Software ArgGIS | G5: ESRI | H5: USD | I5: N/A | J5: ArcGIS Online Service Credits; Block of 1,000 | K5: paquete de creditos | L5: Und | M5: Licencias | N5: N/A | O5: N/A | P5: N/A | Q5: C153418 | R5: Credito a 30 días | S5: 130.41 | T5: 1 | U5: 0 | V5: =SUMIF(ResumenCotizacion!$C:$C,E5,ResumenCotizacion!$P:$P) -> 3 | W5: 130.41 | X5: =ROUND(W5/(1-VLOOKUP("Total porcentaje:",ResumenCotizacion!$F:$H,3,0)),0) -> 135 | Y5: 405
A6: ESRISoftware ArgGIS86353-LU | B6: 86353-LUSoftware ArgGIS | D6: ESRI | E6: 86353-LU | F6: Software ArgGIS | G6: ESRI | H6: USD | I6: N/A | J6: ArcGIS for Desktop Standard Concurrent Licen | K6: Licencia | L6: Und | M6: Licencias | N6: N/A | O6: N/A | P6: N/A | Q6: 86353-LU | R6: Credito a 30 días | S6: 9604.98 | T6: 1 | U6: 0 | V6: =SUMIF(ResumenCotizacion!$C:$C,E6,ResumenCotizacion!$P:$P) -> 1 | W6: 9604.98 | X6: =ROUND(W6/(1-VLOOKUP("Total porcentaje:",ResumenCotizacion!$F:$H,3,0)),0) -> 9964 | Y6: 9964

Sheet tempListas (hidden)
A1: categoria
A2: Software ArgGIS
